Department Family,Entity,Date Paid,Expense Type,Expense Area,Supplier,Transaction Number,Amount (�),Supplier VAT Registration Number
BEIS,Met Office,2021-11-02,11 SERVICES,MARKETS,2016 LCNI CONFERENCE     448444120400,461424,112.5,-
BEIS,Met Office,2021-11-18,11 SERVICES,PEOPLE,3LPAY.COM                GREAT CHESTER,462023,381.47,-
BEIS,Met Office,2021-11-10,13 MISCELLANEOUS,SERVICES,8335 ODIHAM              HOOK,461839,8.94,-
BEIS,Met Office,2021-11-02,11 SERVICES,SCIENCE,A K AVIATION (SERVICES) LTD,461470,2869.6,563733234
BEIS,Met Office,2021-11-02,11 SERVICES,SCIENCE,A K AVIATION (SERVICES) LTD,461546,16333.6,563733234
BEIS,Met Office,2021-11-23,11 SERVICES,SCIENCE,A K AVIATION (SERVICES) LTD,462198,17491.5,563733234
BEIS,Met Office,2021-11-04,08 SOFTWARE LICENCES,PEOPLE,AB MULTIMEDIA LTD,461586,300,849333502
BEIS,Met Office,2021-11-04,08 SOFTWARE LICENCES,PEOPLE,AB MULTIMEDIA LTD,461589,500,849333502
BEIS,Met Office,2021-11-01,11 SERVICES,MARKETS,ABERDEEN JOURNALS LTD    ABERDEEN,461419,621.25,-
BEIS,Met Office,2021-11-03,06 ACCOMMODATION,CHIEF FINANCIAL OFFICER,ABOVE THE REST COMMERCIAL CLEANING LTD,461623,541.27,166969348
BEIS,Met Office,2021-11-03,11 SERVICES,MARKETS,ACCELERATION EMARKETING,461613,2997.85,848940776
BEIS,Met Office,2021-11-03,11 SERVICES,MARKETS,ACCELERATION EMARKETING,461616,28.58,848940776
BEIS,Met Office,2021-11-02,11 SERVICES,CHIEF FINANCIAL OFFICER,ACT Quaynote Communica   877-551-5560,461558,495,-
BEIS,Met Office,2021-11-02,06 ACCOMMODATION,CHIEF FINANCIAL OFFICER,ADAS UK LTD - IN ADMINISTRATION,461549,478.89,685426895
BEIS,Met Office,2021-11-26,Unknown,Unknown,ADT FIRE AND SECURITY PLC,462335,0,413633086
BEIS,Met Office,2021-11-08,06 ACCOMMODATION,SCIENCE,AFRICAN HOTEL DEVELOPMENT (HOTEL ONOMO),461550,4798.18,-
BEIS,Met Office,2021-11-25,11 SERVICES,MARKETS,AIRTO LTD,461435,6595,448873792
BEIS,Met Office,2021-11-05,11 SERVICES,TECHNOLOGY AND CIO,AKAMAI TECHNOLOGIES LTD,460254,4918.08,745091237
BEIS,Met Office,2021-11-08,11 SERVICES,TECHNOLOGY AND CIO,AKAMAI TECHNOLOGIES LTD,461467,4245.7,745091237
BEIS,Met Office,2021-11-01,11 SERVICES,TECHNOLOGY AND CIO,AKAMAI TECHNOLOGIES LTD,461493,25836.75,745091237
BEIS,Met Office,2021-11-16,04 CONTRACTORS,PROGRAMMES,ALIUM PARTNERS LTD,461890,23460,809843207
BEIS,Met Office,2021-11-01,11 SERVICES,CHIEF FINANCIAL OFFICER,ALLSTAR BUSINESS SOLUTIONS LTD,461344,2750.79,747880191
BEIS,Met Office,2021-11-17,06 ACCOMMODATION,CHIEF FINANCIAL OFFICER,ALPHA FENCING LTD,10441,1119.87,751153553
BEIS,Met Office,2021-11-15,07 EQUIPMENT,TECHNOLOGY AND CIO,AMAZON EU                AMAZON.CO.UK,461790,16.66,-
BEIS,Met Office,2021-11-10,13 MISCELLANEOUS,CHIEF FINANCIAL OFFICER,AMAZON EU                AMAZON.CO.UK,461847,134.92,-
BEIS,Met Office,2021-11-10,13 MISCELLANEOUS,SERVICES,AMAZON PRIME M78LW1N54   AMZN.CO.UK/PM,460752,6.66,-
BEIS,Met Office,2021-11-03,13 MISCELLANEOUS,OTHER,Amazon UK Marketplace    800-279-6620,10407,8.96,-
BEIS,Met Office,2021-11-10,13 MISCELLANEOUS,SERVICES,Amazon UK Marketplace    800-279-6620,22983,52.48,-
BEIS,Met Office,2021-11-03,07 EQUIPMENT,SCIENCE,Amazon UK Marketplace    800-279-6620,461473,9.12,-
BEIS,Met Office,2021-11-11,11 SERVICES,PEOPLE,Amazon UK Marketplace    800-279-6620,461747,175,-
BEIS,Met Office,2021-11-10,13 MISCELLANEOUS,SERVICES,Amazon UK Marketplace    800-279-6620,461843,17.72,-
BEIS,Met Office,2021-11-10,13 MISCELLANEOUS,SERVICES,Amazon UK Marketplace    800-279-6620,461844,2.71,-
BEIS,Met Office,2021-11-10,13 MISCELLANEOUS,CHIEF FINANCIAL OFFICER,Amazon UK Marketplace    800-279-6620,461845,71.94,-
BEIS,Met Office,2021-11-10,13 MISCELLANEOUS,SERVICES,Amazon UK Marketplace    800-279-6620,461846,4.69,-
BEIS,Met Office,2021-11-24,13 MISCELLANEOUS,SERVICES,Amazon UK Marketplace    800-279-6620,462150,26.68,-
BEIS,Met Office,2021-11-24,07 EQUIPMENT,TECHNOLOGY AND CIO,Amazon UK Marketplace    800-279-6620,462151,34.99,-
BEIS,Met Office,2021-11-01,13 MISCELLANEOUS,SERVICES,AMAZON UK RETAIL AMAZO   AMAZON.CO.UK,461480,34.44,-
BEIS,Met Office,2021-11-11,13 MISCELLANEOUS,MARKETS,AMAZON UK RETAIL AMAZO   AMAZON.CO.UK,461809,7.74,-
BEIS,Met Office,2021-11-12,11 SERVICES,OFFICE OF THE CEO,AMERICAN METEOROLOGICA   06172272425,461888,510.02,-
BEIS,Met Office,2021-11-09,13 MISCELLANEOUS,SERVICES,AMZNMKTPLACE             AMAZON.CO.UK,459280,9.48,-
BEIS,Met Office,2021-11-05,07 EQUIPMENT,SERVICES,AMZNMKTPLACE             AMAZON.CO.UK,460254,9.99,-
BEIS,Met Office,2021-11-05,07 EQUIPMENT,SERVICES,AMZNMKTPLACE AMAZON.CO   AMAZON.CO.UK,461690,183.34,-
BEIS,Met Office,2021-11-03,13 MISCELLANEOUS,CHIEF FINANCIAL OFFICER,ANTRIM HILLS SPRING WATER CO LTD,23112,27,517173455
BEIS,Met Office,2021-11-23,Unknown,Unknown,ANTRIM HILLS SPRING WATER CO LTD,462224,0,517173455
BEIS,Met Office,2021-11-23,Unknown,Unknown,ANTRIM HILLS SPRING WATER CO LTD,462225,0,517173455
BEIS,Met Office,2021-11-18,03 STAFF COSTS T&S,MARKETS,ARAMARK RESTAURATIONS    ESSEN,461959,13.25,-
BEIS,Met Office,2021-11-10,13 MISCELLANEOUS,SERVICES,ARCO LTD                 BLAYDON,23107,22.37,166911546
BEIS,Met Office,2021-11-09,11 SERVICES,SERVICES,ARINC INCORPORATED,461756,401.2,N/A
BEIS,Met Office,2021-11-26,11 SERVICES,SCIENCE,ASDA SUPERSTORE          READING,459210,35.68,-
BEIS,Met Office,2021-11-03,13 MISCELLANEOUS,MARKETS,ASHLEY HOUSE PRINTING    EXETER,10404,297.67,-
BEIS,Met Office,2021-11-04,11 SERVICES,MARKETS,ASSOC. ELECTRICITY PROD. LTD T/A ENERGY UK,461598,1200,526906825
BEIS,Met Office,2021-11-11,11 SERVICES,CHIEF FINANCIAL OFFICER,AST CONNECTIONS LTD,461871,10782.72,720108683
BEIS,Met Office,2021-11-18,11 SERVICES,MARKETS,AT&T BILL PAYMENT        8003310500,462022,52.7,-
BEIS,Met Office,2021-11-25,FIXTURE & FITTINGS,CHIEF FINANCIAL OFFICER,ATLANTIC OFFICE TRADING CO.,462312,1538.5,557678876
BEIS,Met Office,2021-11-05,13 MISCELLANEOUS,SERVICES,AUTOMATED DOCUMENT SER   GLASGOW,461560,365.22,-
BEIS,Met Office,2021-11-05,13 MISCELLANEOUS,SERVICES,AUTOMATED DOCUMENT SER   GLASGOW,461560,2865.11,-
BEIS,Met Office,2021-11-02,11 SERVICES,TECHNOLOGY AND CIO,BAE SYSTEMS APPLIED INTELLIGENCE LIMITED,461436,9738.72,GB641407169
BEIS,Met Office,2021-11-01,11 SERVICES,TECHNOLOGY AND CIO,BAE SYSTEMS APPLIED INTELLIGENCE LIMITED,461497,8980,GB641407169
BEIS,Met Office,2021-11-05,11 SERVICES,TECHNOLOGY AND CIO,BAE SYSTEMS APPLIED INTELLIGENCE LIMITED,461498,3015,GB641407169
BEIS,Met Office,2021-11-10,13 MISCELLANEOUS,SERVICES,BANNER BUSINESS SERVIC   NORWICH,461812,2.9,-
BEIS,Met Office,2021-11-22,03 STAFF COSTS T&S,MARKETS,BAR ZERO                 BRISTOL,462190,25,-
BEIS,Met Office,2021-11-02,07 EQUIPMENT,CHIEF FINANCIAL OFFICER,BARCLAYCARD COMMERCIAL,461469,10138.5,NOVATNO
BEIS,Met Office,2021-11-16,ACCRUALS,CHIEF FINANCIAL OFFICER,BARCLAYCARD COMMERCIAL,461963,11474.58,NOVATNO
BEIS,Met Office,2021-11-18,ACCRUALS,CHIEF FINANCIAL OFFICER,BARCLAYCARD COMMERCIAL,461977,25117.78,NOVATNO
BEIS,Met Office,2021-11-18,ACCRUALS,OTHER,BARCLAYCARD COMMERCIAL,462008,13278.67,NOVATNO
BEIS,Met Office,2021-11-22,03 STAFF COSTS T&S,SERVICES,BAROCK RESTAURANT        KOEBENHAVN K,462183,29.57,-
BEIS,Met Office,2021-11-15,11 SERVICES,TECHNOLOGY AND CIO,BEE LINE PROMOTION       BIRMINGHAM,461790,167.96,-
BEIS,Met Office,2021-11-19,11 SERVICES,SERVICES,BEELINE PROMOTIONA       01212 121220,462024,85.49,-
BEIS,Met Office,2021-11-18,11 SERVICES,SERVICES,BEELINE PROMOTIONA       01212 121220,462025,969.23,-
BEIS,Met Office,2021-11-08,07 EQUIPMENT,SERVICES,BENTLEY TELECOM LTD      HAYLING ISLAN,461744,254.26,-
BEIS,Met Office,2021-11-10,07 EQUIPMENT,SERVICES,BENTLEY TELECOM LTD      HAYLING ISLAN,461745,585.01,-
BEIS,Met Office,2021-11-01,06 ACCOMMODATION,CHIEF FINANCIAL OFFICER,BIDVEST NOONAN UK LTD,461215,395.68,GB847176988
BEIS,Met Office,2021-11-02,06 ACCOMMODATION,CHIEF FINANCIAL OFFICER,Biffa Waste Services Ltd,461463,274,537911627
BEIS,Met Office,2021-11-10,06 ACCOMMODATION,CHIEF FINANCIAL OFFICER,Biffa Waste Services Ltd,461852,418.86,537911627
BEIS,Met Office,2021-11-10,06 ACCOMMODATION,CHIEF FINANCIAL OFFICER,Biffa Waste Services Ltd,461853,437.84,537911627
BEIS,Met Office,2021-11-10,06 ACCOMMODATION,CHIEF FINANCIAL OFFICER,Biffa Waste Services Ltd,461854,68.77,537911627
BEIS,Met Office,2021-11-11,06 ACCOMMODATION,CHIEF FINANCIAL OFFICER,Biffa Waste Services Ltd,461856,279.5,537911627
BEIS,Met Office,2021-11-10,07 EQUIPMENT,SERVICES,BIGDUG LIMITED           GLOUCESTER,461842,329,-
BEIS,Met Office,2021-11-18,03 STAFF COSTS T&S,SERVICES,BILLA 1963               WIEN,462091,13.57,-
BEIS,Met Office,2021-11-17,TRADE CREDITORS,SERVICES,BLACK BOX NETWORK SERVICES (UK) LTD,10448,3586.8,GB834864303
BEIS,Met Office,2021-11-19,11 SERVICES,SERVICES,BLACK BOX NETWORK SERVICES (UK) LTD,10449,12.5,GB834864303
BEIS,Met Office,2021-11-24,TRADE CREDITORS,SERVICES,BLACK BOX NETWORK SERVICES (UK) LTD,10455,5762.4,GB834864303
BEIS,Met Office,2021-11-24,STOCK,SERVICES,BLACK BOX NETWORK SERVICES (UK) LTD,10456,3586.8,GB834864303
BEIS,Met Office,2021-11-24,11 SERVICES,SERVICES,BLF (UK) LTD,462119,2583,834562226
BEIS,Met Office,2021-11-22,11 SERVICES,SERVICES,BLF (UK) LTD,462136,-2583,834562226
BEIS,Met Office,2021-11-05,11 SERVICES,SERVICES,BLOOMREACH B.V.,461639,17.34,NL815260076B01
BEIS,Met Office,2021-11-09,03 STAFF COSTS T&S,TECHNOLOGY AND CIO,Blue Lagoon Blue Cafe    Grindavik,459282,8.37,-
BEIS,Met Office,2021-11-03,11 SERVICES,PEOPLE,BLUESTONE 360 LTD,461381,4400.25,946504904
BEIS,Met Office,2021-11-24,11 SERVICES,SERVICES,Boc Ltd,462121,-102.4,226556555
BEIS,Met Office,2021-11-10,03 STAFF COSTS T&S,SERVICES,BOOTS 1145               MIDDLESEX,461776,6.3,-
BEIS,Met Office,2021-11-05,08 SOFTWARE LICENCES,TECHNOLOGY AND CIO,BOXXE,461560,98098,734245248
BEIS,Met Office,2021-11-04,08 SOFTWARE LICENCES,TECHNOLOGY AND CIO,BOXXE,461582,21.63,734245248
BEIS,Met Office,2021-11-04,08 SOFTWARE LICENCES,TECHNOLOGY AND CIO,BOXXE,461582,47689.2,734245248
BEIS,Met Office,2021-11-04,08 SOFTWARE LICENCES,TECHNOLOGY AND CIO,BOXXE,461588,34685.25,734245248
BEIS,Met Office,2021-11-04,08 SOFTWARE LICENCES,TECHNOLOGY AND CIO,BOXXE,461588,2142.86,734245248
BEIS,Met Office,2021-11-04,08 SOFTWARE LICENCES,TECHNOLOGY AND CIO,BOXXE,461591,92291.95,734245248
BEIS,Met Office,2021-11-15,08 SOFTWARE LICENCES,TECHNOLOGY AND CIO,BOXXE,461985,1026.84,734245248
BEIS,Met Office,2021-11-15,08 SOFTWARE LICENCES,SCIENCE,BOXXE.COM                01347 812100,461999,567.86,-
BEIS,Met Office,2021-11-05,06 ACCOMMODATION,CHIEF FINANCIAL OFFICER,BPC ENERGY LTD,461560,2053.63,177265088
BEIS,Met Office,2021-11-25,06 ACCOMMODATION,CHIEF FINANCIAL OFFICER,BPC ENERGY LTD,462144,630,177265088
BEIS,Met Office,2021-11-29,06 ACCOMMODATION,CHIEF FINANCIAL OFFICER,BPM GARDEN SERVICES,462372,276.43,-
BEIS,Met Office,2021-11-29,06 ACCOMMODATION,CHIEF FINANCIAL OFFICER,BPM GARDEN SERVICES,462373,355.71,-
BEIS,Met Office,2021-11-25,03 STAFF COSTS T&S,SERVICES,BRITISH FORCES CYPRUS    LIMASSOL,461435,13.75,-
BEIS,Met Office,2021-11-25,03 STAFF COSTS T&S,SERVICES,BRITISH FORCES CYPRUS    LIMASSOL,461435,13.58,-
BEIS,Met Office,2021-11-12,03 STAFF COSTS T&S,PROGRAMMES,BRS-UPPERCRUST CART      BRISTOL,461926,7.66,-
BEIS,Met Office,2021-11-08,PAYE AND VAT,OTHER,BRYERS LLP,461695,0,609635917
BEIS,Met Office,2021-11-02,11 SERVICES,CHIEF FINANCIAL OFFICER,BT CONFERENCING,461545,21909,245719348
BEIS,Met Office,2021-11-05,11 SERVICES,CHIEF FINANCIAL OFFICER,BT GLOBAL SERVICES,461437,11213.28,245719348
BEIS,Met Office,2021-11-10,11 SERVICES,CHIEF FINANCIAL OFFICER,BT plc,461850,20432.48,245719348
BEIS,Met Office,2021-11-25,11 SERVICES,SCIENCE,Bureau Of Meteorology,462317,952.35,-
BEIS,Met Office,2021-11-15,03 STAFF COSTS T&S,PROGRAMMES,BURGER KING              KOBENHAVN K,461935,9.14,-
BEIS,Met Office,2021-11-16,03 STAFF COSTS T&S,SERVICES,BURGER KING  PODIMORE    YEOVIL,462027,11.08,-
BEIS,Met Office,2021-11-09,06 ACCOMMODATION,CHIEF FINANCIAL OFFICER,BUSINESS SUPPORT CENTRE LTD,461754,895.48,927365208
BEIS,Met Office,2021-11-18,PROVISIONS,OTHER,CABINET OFFICE CO CIVIL SUPERANNUATION,462095,1040.02,618184140
BEIS,Met Office,2021-11-03,11 SERVICES,MARKETS,CACI LTD,461529,8.3,380609841
BEIS,Met Office,2021-11-08,11 SERVICES,MARKETS,CACI LTD,461533,349.5,380609841
BEIS,Met Office,2021-11-24,11 SERVICES,MARKETS,CACI LTD,462145,8547,380609841
BEIS,Met Office,2021-11-26,11 SERVICES,MARKETS,CACI LTD,462327,-11.17,380609841
BEIS,Met Office,2021-11-26,11 SERVICES,MARKETS,CACI LTD,462328,-0.87,380609841
BEIS,Met Office,2021-11-10,03 STAFF COSTS T&S,SERVICES,CAFE BAR T1 L/S ARRIVA   BELFAST,461782,5.16,-
BEIS,Met Office,2021-11-17,03 STAFF COSTS T&S,MARKETS,CAFFE NERO 87 PADDINGT   LONDON,462068,3.15,-
BEIS,Met Office,2021-11-10,INFORMATION TECHNOLOGY,PROGRAMMES,Campbell Scientific Ltd,10442,38,428453933
BEIS,Met Office,2021-11-04,10 EQUIPMENT MAINTENANCE,PROGRAMMES,Campbell Scientific Ltd,461477,578.13,428453933
BEIS,Met Office,2021-11-09,13 MISCELLANEOUS,CHIEF FINANCIAL OFFICER,CANON UK LTD,461731,304.01,523797128
BEIS,Met Office,2021-11-15,13 MISCELLANEOUS,CHIEF FINANCIAL OFFICER,CANON UK LTD,461733,303.64,523797128
BEIS,Met Office,2021-11-08,13 MISCELLANEOUS,CHIEF FINANCIAL OFFICER,CANON UK LTD,461734,9020,523797128
BEIS,Met Office,2021-11-08,13 MISCELLANEOUS,CHIEF FINANCIAL OFFICER,CANON UK LTD,461735,436.39,523797128
BEIS,Met Office,2021-11-08,13 MISCELLANEOUS,CHIEF FINANCIAL OFFICER,CANON UK LTD,461736,44.3,523797128
BEIS,Met Office,2021-11-08,13 MISCELLANEOUS,CHIEF FINANCIAL OFFICER,CANON UK LTD,461737,1700,523797128
BEIS,Met Office,2021-11-08,13 MISCELLANEOUS,CHIEF FINANCIAL OFFICER,CANON UK LTD,461738,4026.9,523797128
BEIS,Met Office,2021-11-30,13 MISCELLANEOUS,CHIEF FINANCIAL OFFICER,CANON UK LTD,461972,-1987.25,523797128
BEIS,Met Office,2021-11-30,13 MISCELLANEOUS,CHIEF FINANCIAL OFFICER,CANON UK LTD,461972,-2013.25,523797128
BEIS,Met Office,2021-11-16,13 MISCELLANEOUS,CHIEF FINANCIAL OFFICER,CANON UK LTD,461974,-1695.83,523797128
BEIS,Met Office,2021-11-24,03 STAFF COSTS T&S,SERVICES,CAR HIRE HEBRIDES        STORNOWAY,462113,66,-
BEIS,Met Office,2021-11-04,11 SERVICES,PROGRAMMES,CARBON60 LIMITED,461660,12278,629032550
BEIS,Met Office,2021-11-15,06 ACCOMMODATION,CHIEF FINANCIAL OFFICER,CARDIFF EXECUTIVE CENTRE LTD,10445,2250,864497378
BEIS,Met Office,2021-11-17,06 ACCOMMODATION,CHIEF FINANCIAL OFFICER,CARDIFF EXECUTIVE CENTRE LTD,10447,100,864497378
BEIS,Met Office,2021-11-03,06 ACCOMMODATION,CHIEF FINANCIAL OFFICER,CARDIFF EXECUTIVE CENTRE LTD,22981,120,864497378
BEIS,Met Office,2021-11-24,06 ACCOMMODATION,CHIEF FINANCIAL OFFICER,CARDIFF EXECUTIVE CENTRE LTD,23204,2250,864497378
BEIS,Met Office,2021-11-26,PAYE AND VAT,OTHER,CARDIFF EXECUTIVE CENTRE LTD,459210,494,864497378
BEIS,Met Office,2021-11-26,11 SERVICES,CHIEF FINANCIAL OFFICER,CARDIFF EXECUTIVE CENTRE LTD,459211,2470,864497378
BEIS,Met Office,2021-11-02,06 ACCOMMODATION,CHIEF FINANCIAL OFFICER,CARDIFF EXECUTIVE CENTRE LTD,461548,2370,864497378
BEIS,Met Office,2021-11-04,11 SERVICES,CHIEF FINANCIAL OFFICER,CARDIFF EXECUTIVE CENTRE LTD,461591,29.76,864497378
BEIS,Met Office,2021-11-11,11 SERVICES,CHIEF FINANCIAL OFFICER,CARDIFF EXECUTIVE CENTRE LTD,461907,49.11,864497378
BEIS,Met Office,2021-11-26,Unknown,Unknown,CARDIFF EXECUTIVE CENTRE LTD,462298,0,864497378
BEIS,Met Office,2021-11-15,13 MISCELLANEOUS,SERVICES,CARDIGAN                 CARDIGAN,461988,4.17,-
BEIS,Met Office,2021-11-03,01 STAFF COSTS PAY,SCIENCE,CARLUCCIO S EXETER       EXETER,18421,35,-
BEIS,Met Office,2021-11-12,11 SERVICES,PEOPLE,CARRIER 3PL LTD,461830,165,268671
BEIS,Met Office,2021-11-17,13 MISCELLANEOUS,SERVICES,CARTRIDGE SAVE           STOCKPORT,23248,78.5,-
BEIS,Met Office,2021-11-15,03 STAFF COSTS T&S,SERVICES,CARTUS LTD,461790,360,768489458
BEIS,Met Office,2021-11-09,03 STAFF COSTS T&S,SERVICES,CARTUS LTD,461801,428,768489458
BEIS,Met Office,2021-11-26,Unknown,Unknown,CARTUS LTD,462042,0,768489458
BEIS,Met Office,2021-11-24,Unknown,Unknown,CARTUS LTD,462154,0,768489458
BEIS,Met Office,2021-11-18,03 STAFF COSTS T&S,MARKETS,CAVIAR HOUSE             ROISSY CDG CE,462092,35.04,-
BEIS,Met Office,2021-11-08,08 SOFTWARE LICENCES,PROGRAMMES,CBA BLUEJEANS NETWORK    KOLN,461708,103.4,-
BEIS,Met Office,2021-11-04,06 ACCOMMODATION,CHIEF FINANCIAL OFFICER,CBRE MANAGED SERVICES LTD,460895,24566.22,853936883
BEIS,Met Office,2021-11-09,06 ACCOMMODATION,CHIEF FINANCIAL OFFICER,CBRE MANAGED SERVICES LTD,461108,141920.1,853936883
BEIS,Met Office,2021-11-11,06 ACCOMMODATION,CHIEF FINANCIAL OFFICER,CBRE MANAGED SERVICES LTD,461900,12783.12,853936883
BEIS,Met Office,2021-11-11,06 ACCOMMODATION,CHIEF FINANCIAL OFFICER,CBRE MANAGED SERVICES LTD,461901,27079.82,853936883
BEIS,Met Office,2021-11-03,06 ACCOMMODATION,CHIEF FINANCIAL OFFICER,CELLNEX,10433,648.22,GB 843 8792 82
BEIS,Met Office,2021-11-01,04 CONTRACTORS,TECHNOLOGY AND CIO,CERTES COMPUTING LTD,461459,9936,377345131
BEIS,Met Office,2021-11-03,04 CONTRACTORS,TECHNOLOGY AND CIO,CERTES COMPUTING LTD,461610,2025,377345131
BEIS,Met Office,2021-11-03,04 CONTRACTORS,TECHNOLOGY AND CIO,CERTES COMPUTING LTD,461611,6075,377345131
BEIS,Met Office,2021-11-03,04 CONTRACTORS,TECHNOLOGY AND CIO,CERTES COMPUTING LTD,461624,3780,377345131
BEIS,Met Office,2021-11-03,11 SERVICES,MARKETS,Cgi It Uk Limited,461511,175109.85,232615194
BEIS,Met Office,2021-11-02,11 SERVICES,MARKETS,Cgi It Uk Limited,461513,175109.85,232615194
BEIS,Met Office,2021-11-24,11 SERVICES,MARKETS,Cgi It Uk Limited,462279,40000,232615194
BEIS,Met Office,2021-11-25,11 SERVICES,MARKETS,Cgi It Uk Limited,462286,25143,232615194
BEIS,Met Office,2021-11-30,11 SERVICES,MARKETS,Cgi It Uk Limited,462290,48194,232615194
BEIS,Met Office,2021-11-29,11 SERVICES,TECHNOLOGY AND CIO,CGP ASSOCIATES LTD,462371,1550,589186282
BEIS,Met Office,2021-11-01,03 STAFF COSTS T&S,SERVICES,CHARLIE S TRAVEL LIMIT   CARTERTON,461419,305,-
BEIS,Met Office,2021-11-30,TRADE CREDITORS,SERVICES,CHARNWOOD FASTENERS LIMITED,462348,1890,355315757
BEIS,Met Office,2021-11-29,11 SERVICES,SERVICES,CHARNWOOD FASTENERS LIMITED,462349,69,355315757
BEIS,Met Office,2021-11-30,STOCK,SERVICES,CHARNWOOD FASTENERS LIMITED,462351,1890,355315757
BEIS,Met Office,2021-11-01,11 SERVICES,OFFICE OF THE CEO,CHARTERED INST OF LEGA   BEDFORD,461394,502,-
BEIS,Met Office,2021-11-24,13 MISCELLANEOUS,PEOPLE,CHARTERED MANAGEME       01536 207302,23245,227,-
BEIS,Met Office,2021-11-15,03 STAFF COSTS T&S,SCIENCE,CHEESECAKE SEATTLE       SEATTLE,461828,8.49,-
BEIS,Met Office,2021-11-15,03 STAFF COSTS T&S,SCIENCE,CHEESECAKE SEATTLE       SEATTLE,461829,8.49,-
BEIS,Met Office,2021-11-16,11 SERVICES,MARKETS,Civil Aviation Authority,461892,4087,771548214
BEIS,Met Office,2021-11-15,11 SERVICES,MARKETS,CLARITY TRAVEL MAN       01785 202159,461828,1126,-
BEIS,Met Office,2021-11-09,06 ACCOMMODATION,CHIEF FINANCIAL OFFICER,CLEANING MATTERS BEDFORD LTD,461802,550,847592286
BEIS,Met Office,2021-11-10,08 SOFTWARE LICENCES,SERVICES,CLOUDREACH EUROPE LIMITED,461776,-6650,978187168
BEIS,Met Office,2021-11-02,11 SERVICES,TECHNOLOGY AND CIO,CMC Partnership Global,461500,2000,303694803
BEIS,Met Office,2021-11-02,03 STAFF COSTS T&S,TECHNOLOGY AND CIO,CMC Partnership Global,461501,106.71,303694803
BEIS,Met Office,2021-11-09,03 STAFF COSTS T&S,SERVICES,CMC Partnership Global,461502,106.7,303694803
BEIS,Met Office,2021-11-03,11 SERVICES,PEOPLE,CMC Partnership Global,461503,2000,303694803
BEIS,Met Office,2021-11-04,03 STAFF COSTS T&S,SERVICES,CO OP CORNWALL SERVICE   ROCHE,461654,11.68,-
BEIS,Met Office,2021-11-08,03 STAFF COSTS T&S,PROGRAMMES,COLD STORAGE-KLCC        KUALA LUMPUR,461694,1.73,-
BEIS,Met Office,2021-11-03,11 SERVICES,SERVICES,COLLECTE LOCALISATION SATELLITES (C.L.S.),10434,57.25,FR95338034390
BEIS,Met Office,2021-11-12,11 SERVICES,SERVICES,COLLECTE LOCALISATION SATELLITES (C.L.S.),461824,314.05,FR95338034390
BEIS,Met Office,2021-11-16,11 SERVICES,SERVICES,COLLECTE LOCALISATION SATELLITES (C.L.S.),462030,177.41,FR95338034390
BEIS,Met Office,2021-11-16,11 SERVICES,SERVICES,COLLECTE LOCALISATION SATELLITES (C.L.S.),462031,9724.61,FR95338034390
BEIS,Met Office,2021-11-24,11 SERVICES,SERVICES,COLLECTE LOCALISATION SATELLITES (C.L.S.),462166,182.97,FR95338034390
BEIS,Met Office,2021-11-02,06 ACCOMMODATION,CHIEF FINANCIAL OFFICER,COMMERCIAL TRANSFER LTD,461458,444,891436990
BEIS,Met Office,2021-11-11,10 EQUIPMENT MAINTENANCE,SERVICES,COMMUNICATIONS & POWER IND. EUROPE LTD,458861,-30.5,664103850
BEIS,Met Office,2021-11-09,07 EQUIPMENT,SERVICES,COMPONENTSPAYMENT        01483 266777,459278,68.8,-
BEIS,Met Office,2021-11-02,10 EQUIPMENT MAINTENANCE,TECHNOLOGY AND CIO,COMPUTACENTER (UK) LTD,461472,-366.32,490334648
BEIS,Met Office,2021-11-18,INFORMATION TECHNOLOGY,PROGRAMMES,COMPUTACENTER (UK) LTD,462015,750.39,490334648
BEIS,Met Office,2021-11-19,INFORMATION TECHNOLOGY,PROGRAMMES,COMPUTACENTER (UK) LTD,462017,8012.64,490334648
BEIS,Met Office,2021-11-10,07 EQUIPMENT,SCIENCE,COMPUTACENTER (UK) LTD   HATFIELD,461786,67.49,-
BEIS,Met Office,2021-11-11,07 EQUIPMENT,TECHNOLOGY AND CIO,COMPUTACENTER (UK) LTD   HATFIELD,461903,63.92,-
BEIS,Met Office,2021-11-15,07 EQUIPMENT,MARKETS,COMPUTACENTER (UK) LTD   HATFIELD,461910,668.31,-
BEIS,Met Office,2021-11-16,07 EQUIPMENT,MARKETS,COMPUTACENTER (UK) LTD   HATFIELD,461911,111.39,-
BEIS,Met Office,2021-11-15,03 STAFF COSTS T&S,SERVICES,CONDOR LIBERATION        POOLE,460010,4.85,-
BEIS,Met Office,2021-11-17,03 STAFF COSTS T&S,MARKETS,CONNOLLY'S 121 W 45TH    NEW YORK,462067,41.63,-
BEIS,Met Office,2021-11-24,03 STAFF COSTS T&S,SERVICES,COSTA COFFEE 43037910    NOTTINGHAM,462273,3.33,-
BEIS,Met Office,2021-11-08,03 STAFF COSTS T&S,SERVICES,COSTA COFFEE 43046870    ROCHE DTLO,461565,2.71,-
BEIS,Met Office,2021-11-01,13 MISCELLANEOUS,SERVICES,COSTCUTTER               CAMBOURNE,461422,6.29,-
BEIS,Met Office,2021-11-24,01 STAFF COSTS PAY,OFFICE OF THE CEO,COSY CLUB LOUNGERS HQ    BRISTOL,461417,90,-
BEIS,Met Office,2021-11-12,13 MISCELLANEOUS,SERVICES,COTSWOLD OUTDOOR-MAIL    MALMESBURY,461928,38.96,-
BEIS,Met Office,2021-11-08,03 STAFF COSTS T&S,SERVICES,COUNTRY STORES           SALISBURY,461743,5.83,-
BEIS,Met Office,2021-11-02,07 EQUIPMENT,SCIENCE,CRANFIELD AEROSPACE SOLUTIONS LTD,461512,7300,608596509
BEIS,Met Office,2021-11-15,11 SERVICES,MARKETS,Cranfield University,461881,750,491358622
BEIS,Met Office,2021-11-08,10 EQUIPMENT MAINTENANCE,TECHNOLOGY AND CIO,CRAY UK LTD,461609,15250,724594419
BEIS,Met Office,2021-11-03,03 STAFF COSTS T&S,OFFICE OF THE CEO,CROWNE PLAZA CHANGI AI   SINGAPORE,461606,20.56,-
BEIS,Met Office,2021-11-04,11 SERVICES,PROGRAMMES,CUCUMBER LIMITED,461596,10000,180333627
BEIS,Met Office,2021-11-16,CYCLESCHEME,OTHER,CYCLESCHEME LTD,461887,708.32,850403556
BEIS,Met Office,2021-11-11,06 ACCOMMODATION,CHIEF FINANCIAL OFFICER,D & M CLEANING SERVICES,461808,988,591156630
BEIS,Met Office,2021-11-24,03 STAFF COSTS T&S,MARKETS,DANTAXI                  VANLOESE,462111,15.27,-
BEIS,Met Office,2021-11-16,03 STAFF COSTS T&S,SERVICES,DART-CHARGE              GOV.UK/DART-C,462029,6,-
BEIS,Met Office,2021-11-15,03 STAFF COSTS T&S,MARKETS,DAYS HOTEL               LONDON,461929,8.33,-
BEIS,Met Office,2021-11-15,03 STAFF COSTS T&S,MARKETS,DAYS HOTEL               LONDON,461930,50,-
BEIS,Met Office,2021-11-09,03 STAFF COSTS T&S,SERVICES,DBS FINANCE RECEIPTS CTS,460511,8275,888805068
BEIS,Met Office,2021-11-09,11 SERVICES,CHIEF FINANCIAL OFFICER,DBS FINANCE RECEIPTS CTS,461806,198.03,888805068
BEIS,Met Office,2021-11-15,11 SERVICES,MARKETS,DBS FINANCE RECEIPTS CTS,461891,12243.88,888805068
BEIS,Met Office,2021-11-11,11 SERVICES,MARKETS,DBS FINANCE RECEIPTS CTS,461896,10134.01,888805068
BEIS,Met Office,2021-11-15,13 MISCELLANEOUS,SERVICES,DECOR CENTRE             LLANDOVERY,461991,12.49,-
BEIS,Met Office,2021-11-08,11 SERVICES,PEOPLE,DESIGNAMITE LTD,461593,1134,817819989
BEIS,Met Office,2021-11-23,13 MISCELLANEOUS,OFFICE OF THE CEO,DEVON & CORNWALL BUSINESS COUNCIL,460261,600,768969833
BEIS,Met Office,2021-11-26,11 SERVICES,SERVICES,DHL INTERNATIONAL (UK) LTD,462331,191.9,751812341
BEIS,Met Office,2021-11-10,06 ACCOMMODATION,CHIEF FINANCIAL OFFICER,DIAMOND FACILITIES SUPPORT LIMITED,461703,2983.92,984488161
BEIS,Met Office,2021-11-08,03 STAFF COSTS T&S,PROGRAMMES,DIEP IN DIE BERG         WAPADRAND,461717,154.2,-
BEIS,Met Office,2021-11-03,11 SERVICES,CHIEF FINANCIAL OFFICER,DIGITAL COMMUNICATIONS SYSTEMS LIMITED,461612,3521.73,GB 556 1971 19
BEIS,Met Office,2021-11-26,03 STAFF COSTS T&S,PROGRAMMES,DINER.                   KEMPTON PARK,462042,11.62,-
BEIS,Met Office,2021-11-08,06 ACCOMMODATION,CHIEF FINANCIAL OFFICER,DINNET & KINORD ESTATES,461739,3855.15,267044752
BEIS,Met Office,2021-11-03,08 SOFTWARE LICENCES,SERVICES,DOT SOFTWARE LTD,23112,4320,701022805
BEIS,Met Office,2021-11-08,03 STAFF COSTS T&S,MARKETS,DRAGONFISH ASIAN CAFE    SEATTLE,460643,86.86,-
BEIS,Met Office,2021-11-25,07 EQUIPMENT,SCIENCE,DROPLET MEASUREMENT TECH 303-4405576,461435,3778.59,-
BEIS,Met Office,2021-11-12,03 STAFF COSTS T&S,PROGRAMMES,DSB NORREPORT AUT        KOBENHAVN K,461888,5.69,-
BEIS,Met Office,2021-11-09,11 SERVICES,MARKETS,Dstl,460516,39314.17,888805166
BEIS,Met Office,2021-11-09,03 STAFF COSTS T&S,TECHNOLOGY AND CIO,Duty Free Store          REYKJANESBER,459284,17.65,-
BEIS,Met Office,2021-11-16,11 SERVICES,PEOPLE,EDENRED - CHILDCARE VOUCHERS,462035,13452.5,649 503 520
BEIS,Met Office,2021-11-10,11 SERVICES,PEOPLE,EDENRED I&M (IRS VOUCHERS),22611,10934.4,649 503 520
BEIS,Met Office,2021-11-09,CYCLESCHEME,OTHER,EDENRED UK (CYCLESCHEME),460517,0,649 503 520
BEIS,Met Office,2021-11-25,06 ACCOMMODATION,CHIEF FINANCIAL OFFICER,EDF ENERGY CUSTOMERS PLC,462260,-98730.78,523041202
BEIS,Met Office,2021-11-04,11 SERVICES,CHIEF FINANCIAL OFFICER,EIR,461600,52.53,4736919B
BEIS,Met Office,2021-11-16,11 SERVICES,CHIEF FINANCIAL OFFICER,EIR,461884,50.97,4736919B
BEIS,Met Office,2021-11-24,11 SERVICES,SCIENCE,EMS2017-ASC-2            017-298,462114,30.22,-
BEIS,Met Office,2021-11-18,13 MISCELLANEOUS,PROGRAMMES,EMS2017-ASC-2            017-314,462094,25.39,-
BEIS,Met Office,2021-11-24,13 MISCELLANEOUS,MARKETS,ENERGY INDUSTRIES COUNCIL,462261,7675,235882637
BEIS,Met Office,2021-11-05,08 SOFTWARE LICENCES,TECHNOLOGY AND CIO,ENTCORP UK LTD,461264,5487.74,314149679
BEIS,Met Office,2021-11-09,INFORMATION TECHNOLOGY,TECHNOLOGY AND CIO,ENTCORP UK LTD,461534,9273.1,314149679
BEIS,Met Office,2021-11-05,07 EQUIPMENT,TECHNOLOGY AND CIO,ENTCORP UK LTD,461535,3583.03,314149679
BEIS,Met Office,2021-11-02,05 CONSULTANTS,TECHNOLOGY AND CIO,ENTCORP UK LTD,461556,1250,314149679
BEIS,Met Office,2021-11-04,INFORMATION TECHNOLOGY,TECHNOLOGY AND CIO,ENTCORP UK LTD,461602,264.2,314149679
BEIS,Met Office,2021-11-09,08 SOFTWARE LICENCES,TECHNOLOGY AND CIO,ENTCORP UK LTD,461753,18207.66,314149679
BEIS,Met Office,2021-11-10,07 EQUIPMENT,TECHNOLOGY AND CIO,ENTCORP UK LTD,461776,2918.5,314149679
BEIS,Met Office,2021-11-15,PAYE AND VAT,OTHER,ENTCORP UK LTD,461791,0,314149679
BEIS,Met Office,2021-11-15,07 EQUIPMENT,SCIENCE,ENTCORP UK LTD,461791,53676,314149679
BEIS,Met Office,2021-11-15,09 DEPRECIATION,SCIENCE,ENTCORP UK LTD,461791,17892,314149679
BEIS,Met Office,2021-11-15,PAYE AND VAT,OTHER,ENTCORP UK LTD,461792,0,314149679
BEIS,Met Office,2021-11-11,13 MISCELLANEOUS,CHIEF FINANCIAL OFFICER,ENTCORP UK LTD,461793,18420.48,314149679
BEIS,Met Office,2021-11-10,13 MISCELLANEOUS,CHIEF FINANCIAL OFFICER,ENTCORP UK LTD,461794,1284.24,314149679
BEIS,Met Office,2021-11-24,13 MISCELLANEOUS,CHIEF FINANCIAL OFFICER,ENTCORP UK LTD,461796,-19704.72,314149679
BEIS,Met Office,2021-11-24,13 MISCELLANEOUS,CHIEF FINANCIAL OFFICER,ENTCORP UK LTD,461796,-18420.48,314149679
BEIS,Met Office,2021-11-11,INFORMATION TECHNOLOGY,TECHNOLOGY AND CIO,ENTCORP UK LTD,461808,17643.21,314149679
BEIS,Met Office,2021-11-11,INFORMATION TECHNOLOGY,TECHNOLOGY AND CIO,ENTCORP UK LTD,461808,70572.84,314149679
BEIS,Met Office,2021-11-11,PAYE AND VAT,OTHER,ENTCORP UK LTD,461808,1411.5,314149679
BEIS,Met Office,2021-11-11,PAYE AND VAT,OTHER,ENTCORP UK LTD,461808,-353,314149679
BEIS,Met Office,2021-11-15,INFORMATION TECHNOLOGY,TECHNOLOGY AND CIO,ENTCORP UK LTD,461825,-70572.84,314149679
BEIS,Met Office,2021-11-15,INFORMATION TECHNOLOGY,TECHNOLOGY AND CIO,ENTCORP UK LTD,461828,11832.6,314149679
BEIS,Met Office,2021-11-18,INFORMATION TECHNOLOGY,TECHNOLOGY AND CIO,ENTCORP UK LTD,461964,35572.05,314149679
BEIS,Met Office,2021-11-16,INFORMATION TECHNOLOGY,SERVICES,ENTCORP UK LTD,461968,17975.64,314149679
BEIS,Met Office,2021-11-30,07 EQUIPMENT,SCIENCE,ENTCORP UK LTD,461972,0.01,314149679
BEIS,Met Office,2021-11-16,INFORMATION TECHNOLOGY,TECHNOLOGY AND CIO,ENTCORP UK LTD,461974,432220.41,314149679
BEIS,Met Office,2021-11-18,INFORMATION TECHNOLOGY,TECHNOLOGY AND CIO,ENTCORP UK LTD,461981,35286.42,314149679
BEIS,Met Office,2021-11-18,08 SOFTWARE LICENCES,TECHNOLOGY AND CIO,ENTCORP UK LTD,462009,15103.83,314149679
BEIS,Met Office,2021-11-02,PLANT AND EQUIPMENT,SERVICES,ENTERPRISE ELECTRONICS CORPORATION,461425,10032.27,-
BEIS,Met Office,2021-11-03,03 STAFF COSTS T&S,CHIEF FINANCIAL OFFICER,ENTERPRISE RENT A CAR UK LTD,461532,681.4,215557314
BEIS,Met Office,2021-11-22,Unknown,Unknown,ENTERPRISE RENT A CAR UK LTD,462161,0,215557314
BEIS,Met Office,2021-11-03,13 MISCELLANEOUS,SCIENCE,EON LOGISTICS & TRADING LTD,461478,550,134941218
BEIS,Met Office,2021-11-26,Unknown,Unknown,E-ON UK PLC,462302,0,559097889
BEIS,Met Office,2021-11-30,Unknown,Unknown,E-ON UK PLC,462393,0,559097889
BEIS,Met Office,2021-11-30,Unknown,Unknown,E-ON UK PLC,462394,0,559097889
BEIS,Met Office,2021-11-10,07 EQUIPMENT,SERVICES,EQUINOX INSTRUMENTS LTD,460869,6237,865954274
BEIS,Met Office,2021-11-18,07 EQUIPMENT,SCIENCE,EQUINOX INSTRUMENTS LTD,462022,80,865954274
BEIS,Met Office,2021-11-09,11 SERVICES,MARKETS,ERNEUERBARE ENERGIEN HAMBURG E.V.,461601,283.9,17/439/00746
BEIS,Met Office,2021-11-29,11 SERVICES,SERVICES,"EUTELSAT, S.A.",462368,2312.49,-
BEIS,Met Office,2021-11-29,11 SERVICES,SERVICES,"EUTELSAT, S.A.",462369,1055.11,-
BEIS,Met Office,2021-11-29,11 SERVICES,SERVICES,"EUTELSAT, S.A.",462370,1461.32,-
BEIS,Met Office,2021-11-18,Unknown,Unknown,EXETER GOLF & COUNTRY CLUB - NO 2 ACCOUNT,462056,0,141085693
BEIS,Met Office,2021-11-02,11 SERVICES,MARKETS,FCDO,460626,16.7,888813560
BEIS,Met Office,2021-11-17,11 SERVICES,MARKETS,FCDO,461536,5645.55,888813560
BEIS,Met Office,2021-11-10,04 CONTRACTORS,TECHNOLOGY AND CIO,FDM GROUP LIMITED,461746,5940,583540529
BEIS,Met Office,2021-11-10,04 CONTRACTORS,TECHNOLOGY AND CIO,FDM GROUP LIMITED,461786,5400,583540529
BEIS,Met Office,2021-11-16,04 CONTRACTORS,TECHNOLOGY AND CIO,FDM GROUP LIMITED,461889,5400,583540529
BEIS,Met Office,2021-11-25,04 CONTRACTORS,TECHNOLOGY AND CIO,FDM GROUP LIMITED,462019,1080,583540529
BEIS,Met Office,2021-11-22,11 SERVICES,SCIENCE,FLIR SYSTEMS  LTD,462142,300,335104592
BEIS,Met Office,2021-11-24,03 STAFF COSTS T&S,MARKETS,FLYGBUSSARNA DOOR TO G   STOCKHOLM,462115,51.79,-
BEIS,Met Office,2021-11-29,06 ACCOMMODATION,CHIEF FINANCIAL OFFICER,FOX GROUNDS MAINTENANCE & LANDSCAPING LTD,462320,279.59,129495383
BEIS,Met Office,2021-11-15,03 STAFF COSTS T&S,SERVICES,FRANKLEY S/W COSTA COF   BIRMINGHAM,461982,3.24,-
BEIS,Met Office,2021-11-08,04 CONTRACTORS,SERVICES,G2 RECRUITMENT SOLUTIONS LTD,461699,2352.9,182819383003
BEIS,Met Office,2021-11-12,04 CONTRACTORS,SERVICES,G2 RECRUITMENT SOLUTIONS LTD,461788,1882.32,182819383003
BEIS,Met Office,2021-11-10,04 CONTRACTORS,SERVICES,G2 RECRUITMENT SOLUTIONS LTD,461831,2352.9,182819383003
BEIS,Met Office,2021-11-09,03 STAFF COSTS T&S,PROGRAMMES,GIGGLES & GEEKS          CYBERJAYA,461693,180.51,-
BEIS,Met Office,2021-11-22,Unknown,Unknown,Gill Instruments Ltd,462192,0,522056678
BEIS,Met Office,2021-11-24,13 MISCELLANEOUS,SCIENCE,GITHUB.COM  6B7E8        4154486673,462272,20.09,-
BEIS,Met Office,2021-11-22,Unknown,Unknown,Glasgow City Council,462051,0,653051560
BEIS,Met Office,2021-11-22,10 EQUIPMENT MAINTENANCE,SERVICES,GLOBAL INVACOM WAVEGUIDE,462162,3153,807820628
BEIS,Met Office,2021-11-02,03 STAFF COSTS T&S,SERVICES,GLOUCESTERSHIRE GA       PENRITH,461554,4.5,-
BEIS,Met Office,2021-11-02,03 STAFF COSTS T&S,SERVICES,GLOUCESTERSHIRE GA       PENRITH,461555,3.75,-
BEIS,Met Office,2021-11-24,06 ACCOMMODATION,SERVICES,GO OUTDOORS              EXETER,462207,29.15,-
BEIS,Met Office,2021-11-17,11 SERVICES,SERVICES,Goldisc Limited,23110,83,861294416
BEIS,Met Office,2021-11-02,07 EQUIPMENT,SCIENCE,GOODFELLOW               HUNTINGDON,461352,320,-
BEIS,Met Office,2021-11-16,11 SERVICES,PEOPLE,GOOGLE  ADS3175971195    DUBLIN,462036,500,-
BEIS,Met Office,2021-11-15,03 STAFF COSTS T&S,SERVICES,GORDONS CHEMISTS         DOWNPATRICK,461935,4.99,-
BEIS,Met Office,2021-11-15,03 STAFF COSTS T&S,SERVICES,GOV.UK/DART-CHARGE       DART-CHARGE,461934,6,-
BEIS,Met Office,2021-11-09,06 ACCOMMODATION,CHIEF FINANCIAL OFFICER,GOVERNMENT PROPERTY AGENCY,460518,47638.07,888 8508 47
BEIS,Met Office,2021-11-17,06 ACCOMMODATION,CHIEF FINANCIAL OFFICER,GREENSTAR CLEANERS LTD,462070,141.66,492376222
BEIS,Met Office,2021-11-11,11 SERVICES,SERVICES,H & B SENSORS LTD,461895,25,321828666
BEIS,Met Office,2021-11-17,Unknown,Unknown,Halcrow Group Ltd,462073,0,446106859
BEIS,Met Office,2021-11-10,13 MISCELLANEOUS,SERVICES,HALFORDS 0376            LLANTRISANT,23011,2.82,-
BEIS,Met Office,2021-11-10,13 MISCELLANEOUS,SERVICES,HALFORDS 0875            EXETER,461849,20.64,-
BEIS,Met Office,2021-11-22,PLANT AND EQUIPMENT,CHIEF FINANCIAL OFFICER,HASKONING UK LIMITED,462163,8443.81,792428892
BEIS,Met Office,2021-11-09,11 SERVICES,PEOPLE,HAWK INCENTIVES LTD,460513,117,238839422
BEIS,Met Office,2021-11-25,11 SERVICES,PEOPLE,HAWK INCENTIVES LTD,462316,20220,238839422
BEIS,Met Office,2021-11-03,04 CONTRACTORS,TECHNOLOGY AND CIO,HAYS SPECIALIST RECRUITMENT LTD,23112,397.49,773695871
BEIS,Met Office,2021-11-15,04 CONTRACTORS,PEOPLE,HAYS SPECIALIST RECRUITMENT LTD,461835,166.54,773695871
BEIS,Met Office,2021-11-22,04 CONTRACTORS,TECHNOLOGY AND CIO,HAYS SPECIALIST RECRUITMENT LTD,462134,506.53,773695871
BEIS,Met Office,2021-11-24,04 CONTRACTORS,PEOPLE,HAYS SPECIALIST RECRUITMENT LTD,462147,446.63,773695871
BEIS,Met Office,2021-11-22,04 CONTRACTORS,PEOPLE,HAYS SPECIALIST RECRUITMENT LTD,462195,560.18,773695871
BEIS,Met Office,2021-11-04,03 STAFF COSTS T&S,SERVICES,HEATHROW AIRPORT         PRE-BOOKING,461515,110.56,-
BEIS,Met Office,2021-11-01,11 SERVICES,MARKETS,HEMMING GROUP LTD        LONDON,461419,2358,-
BEIS,Met Office,2021-11-08,11 SERVICES,TECHNOLOGY AND CIO,Hewlett Packard,460976,1875,-
BEIS,Met Office,2021-11-26,11 SERVICES,TECHNOLOGY AND CIO,Hewlett Packard,461979,680,-
BEIS,Met Office,2021-11-04,06 ACCOMMODATION,CHIEF FINANCIAL OFFICER,HIGHLANDS & ISLANDS AIRPORTS LTD.,461540,91.52,945667772
BEIS,Met Office,2021-11-04,03 STAFF COSTS T&S,MARKETS,HILTON                   GROSVENOR,461591,8.65,-
BEIS,Met Office,2021-11-26,03 STAFF COSTS T&S,SERVICES,HOLIDAY INNS             SOUTHAMPTON,462210,10,-
BEIS,Met Office,2021-11-25,03 STAFF COSTS T&S,MARKETS,HOTEL MOON SUNRISE       BENITO JUAREZ,462220,120.53,-
BEIS,Met Office,2021-11-03,13 MISCELLANEOUS,SCIENCE,HP INC UK LIMITED        BRACKNELL,461607,114,-
BEIS,Met Office,2021-11-16,11 SERVICES,MARKETS,"IBL SOFTWARE ENGINEERING, SPOL S.R.O.",461893,6782,SK2020241883
BEIS,Met Office,2021-11-19,11 SERVICES,MARKETS,"IBL SOFTWARE ENGINEERING, SPOL S.R.O.",462105,3751,SK2020241883
BEIS,Met Office,2021-11-10,06 ACCOMMODATION,CHIEF FINANCIAL OFFICER,Independent Television News Ltd,460869,20951,756299581
BEIS,Met Office,2021-11-15,11 SERVICES,CHIEF FINANCIAL OFFICER,Independent Television News Ltd,462001,967.08,756299581
BEIS,Met Office,2021-11-05,11 SERVICES,CHIEF FINANCIAL OFFICER,INMARSAT SOLUTIONS (CANADA) INC,461581,923.85,766144223
BEIS,Met Office,2021-11-11,11 SERVICES,CHIEF FINANCIAL OFFICER,INMARSAT SOLUTIONS (CANADA) INC,461905,970.68,766144223
BEIS,Met Office,2021-11-11,11 SERVICES,CHIEF FINANCIAL OFFICER,INMARSAT SOLUTIONS (CANADA) INC,461908,1546.04,766144223
BEIS,Met Office,2021-11-29,11 SERVICES,SCIENCE,INSTITUT FUR ATMOSPHARE UND KLIMA,462318,750.24,-
BEIS,Met Office,2021-11-22,07 EQUIPMENT,SERVICES,INSTRUMENT SALES         44845520020,462051,265.4,-
BEIS,Met Office,2021-11-25,Unknown,Unknown,INTERCALL,462159,0,479985260
BEIS,Met Office,2021-11-18,03 STAFF COSTS T&S,SERVICES,INTERSPAR DANKT          WIEN,462093,14.09,-
BEIS,Met Office,2021-11-09,13 MISCELLANEOUS,TECHNOLOGY AND CIO,"INVISIONAPP, INC         NEW YORK",459281,82.69,-
BEIS,Met Office,2021-11-26,11 SERVICES,TECHNOLOGY AND CIO,IRON MOUNTAIN (UK) LTD,462326,658.72,607937516
BEIS,Met Office,2021-11-01,07 EQUIPMENT,SERVICES,ISOTHERMAL TECHNOLOGY LTD,461495,613,325108979
BEIS,Met Office,2021-11-24,03 STAFF COSTS T&S,SERVICES,JERSEY CAR PARKING       WWW.GOV.JE,461379,5.28,-
BEIS,Met Office,2021-11-30,11 SERVICES,CHIEF FINANCIAL OFFICER,JERSEY TELECOM,462319,39.84,NOTVATREG
BEIS,Met Office,2021-11-17,03 STAFF COSTS T&S,MARKETS,JFK T7 APT 7B DELL & M   JAMAICA,462065,19.89,-
BEIS,Met Office,2021-11-03,04 CONTRACTORS,PEOPLE,JOBSEEKERS RECRUITMENT SERVICES LTD,10421,635.23,130 1297 14
BEIS,Met Office,2021-11-03,04 CONTRACTORS,MARKETS,JOBSEEKERS RECRUITMENT SERVICES LTD,10423,674.88,130 1297 14
BEIS,Met Office,2021-11-03,04 CONTRACTORS,OFFICE OF THE CEO,JOBSEEKERS RECRUITMENT SERVICES LTD,10426,674.88,130 1297 14
BEIS,Met Office,2021-11-05,03 STAFF COSTS T&S,MARKETS,JOE & THE JUICE     15800HONG KONG,461691,13.19,-
BEIS,Met Office,2021-11-03,13 MISCELLANEOUS,PROGRAMMES,JOHN WILEY & SONS PUBL   CHICHESTER,10435,1360,-
BEIS,Met Office,2021-11-03,13 MISCELLANEOUS,SCIENCE,JOHN WILEY & SONS PUBL   CHICHESTER,10436,2000,-
BEIS,Met Office,2021-11-02,07 EQUIPMENT,SERVICES,KEISON VOIPON 4GON       CHELMSFORD,461516,502.51,-
BEIS,Met Office,2021-11-26,11 SERVICES,MARKETS,KENYA METEOROLOGICAL SOCIETY,462325,9127.09,-
BEIS,Met Office,2021-11-18,07 EQUIPMENT,TECHNOLOGY AND CIO,KEYSIGHT TECHNOLOGIES UK LTD,461962,360,731614359
BEIS,Met Office,2021-11-01,FIXTURE & FITTINGS,CHIEF FINANCIAL OFFICER,KINGSPAN ACCESS FLOORS LTD,461496,1364.4,450600489
BEIS,Met Office,2021-11-03,INFORMATION TECHNOLOGY,SERVICES,Kongsberg Spacetec As,10395,-1331.8,-
BEIS,Met Office,2021-11-10,INFORMATION TECHNOLOGY,SERVICES,Kongsberg Spacetec As,10397,37990.75,-
BEIS,Met Office,2021-11-25,11 SERVICES,SERVICES,LEJ CONTRACTS LTD,462315,1056,977848538
BEIS,Met Office,2021-11-25,11 SERVICES,MARKETS,Lem Ingenieurb�ro Last Und Engergiemanagement,462168,1287.58,-
BEIS,Met Office,2021-11-23,11 SERVICES,MARKETS,Lem Ingenieurb�ro Last Und Engergiemanagement,462169,643.79,-
BEIS,Met Office,2021-11-22,11 SERVICES,SERVICES,LEX AUTOLEASE LTD,462141,299.53,244155576
BEIS,Met Office,2021-11-04,13 MISCELLANEOUS,MARKETS,LEXXIC LTD,461584,1200,926419511
BEIS,Met Office,2021-11-08,13 MISCELLANEOUS,MARKETS,LINKEDIN 6189700526      LINKEDIN.COM,461566,41.66,-
BEIS,Met Office,2021-11-09,03 STAFF COSTS T&S,CHIEF FINANCIAL OFFICER,LUL TICKET MACHINE       WATERLOO A,461759,4.9,-
BEIS,Met Office,2021-11-24,03 STAFF COSTS T&S,SERVICES,M6 TOLL                  TOLL CHARGE,10414,4.08,-
BEIS,Met Office,2021-11-04,13 MISCELLANEOUS,PEOPLE,MAC EXETER               EXETER,461476,135.43,-
BEIS,Met Office,2021-11-01,12 INTERNATIONAL,MARKETS,MACITECHSY SOLUTIONS,461462,640,-
BEIS,Met Office,2021-11-24,11 SERVICES,SERVICES,"MAILGUN TECHNOLOGIES,    8885718972",23255,76.63,-
BEIS,Met Office,2021-11-01,11 SERVICES,SERVICES,"MAILGUN TECHNOLOGIES,    8885718972",461419,55.56,-
BEIS,Met Office,2021-11-26,11 SERVICES,SCIENCE,MAJESTIC WINE WARE       READING,459211,105.7,-
BEIS,Met Office,2021-11-10,11 SERVICES,CHIEF FINANCIAL OFFICER,MAWASEM LTD,23148,0,197694731
BEIS,Met Office,2021-11-09,03 STAFF COSTS T&S,SERVICES,MCDONALDS                DARWEN,461752,3.82,-
BEIS,Met Office,2021-11-05,03 STAFF COSTS T&S,SERVICES,MCDONALDS                MORECAMBE,461687,4.91,-
BEIS,Met Office,2021-11-18,03 STAFF COSTS T&S,SERVICES,MDN WELCOME B/WAITROSE   HUNGERFORD,461957,7.58,-
BEIS,Met Office,2021-11-02,11 SERVICES,SERVICES,MERKLE UK THREE LTD T/A MERKLE PERISCOPIX,461551,8208.33,843316243
BEIS,Met Office,2021-11-10,07 EQUIPMENT,SERVICES,METALS4U                 WETHERBY,23010,52.45,-
BEIS,Met Office,2021-11-25,03 STAFF COSTS T&S,SERVICES,METROSTATION KGS NYTOR   KOEBENHAVN K,462181,4.19,-
BEIS,Met Office,2021-11-18,TRADE CREDITORS,SERVICES,Metspec Ltd,462022,533,738825202
BEIS,Met Office,2021-11-02,03 STAFF COSTS T&S,OFFICE OF THE CEO,MILLERS BAR AND RESTAUR  SLEAFORD,461434,170.35,-
BEIS,Met Office,2021-11-22,Unknown,Unknown,MILLS AND SONS LTD,462066,0,808366053
BEIS,Met Office,2021-11-24,Unknown,Unknown,MILLS AND SONS LTD,462123,0,808366053
BEIS,Met Office,2021-11-24,Unknown,Unknown,MILLS AND SONS LTD,462124,0,808366053
BEIS,Met Office,2021-11-03,06 ACCOMMODATION,CHIEF FINANCIAL OFFICER,Mitie Landscapes Ltd,460827,56.9,GB 416 706 654
BEIS,Met Office,2021-11-10,11 SERVICES,CHIEF FINANCIAL OFFICER,MITIE SECURITY LTD,461789,3294.23,416706654
BEIS,Met Office,2021-11-11,11 SERVICES,CHIEF FINANCIAL OFFICER,MITIE SECURITY LTD,461899,20588.08,416706654
BEIS,Met Office,2021-11-11,11 SERVICES,CHIEF FINANCIAL OFFICER,MITIE SECURITY LTD,461902,7000,416706654
BEIS,Met Office,2021-11-02,06 ACCOMMODATION,CHIEF FINANCIAL OFFICER,MORAY COUNCIL,461438,2925,663755506
BEIS,Met Office,2021-11-03,06 ACCOMMODATION,CHIEF FINANCIAL OFFICER,MORAY COUNCIL,461538,148.2,663755506
BEIS,Met Office,2021-11-22,03 STAFF COSTS T&S,SERVICES,MORAYDALE GUEST HOUSE    ELGIN,462188,60,-
BEIS,Met Office,2021-11-25,04 CONTRACTORS,PEOPLE,MORGAN HUNT UK LTD,462313,2035,927120837
BEIS,Met Office,2021-11-05,11 SERVICES,CHIEF FINANCIAL OFFICER,Morton Fraser LLP,461560,82,269129336
BEIS,Met Office,2021-11-18,03 STAFF COSTS T&S,SERVICES,MOTTO CATERING GMBH      WIEN,462090,12.17,-
BEIS,Met Office,2021-11-02,13 MISCELLANEOUS,SERVICES,MPD - LINCOLN 111        LINCOLN,461426,43.57,-
BEIS,Met Office,2021-11-09,10 EQUIPMENT MAINTENANCE,SERVICES,MPD HOOK AND LOOP        INTERNET,459279,80.84,-
BEIS,Met Office,2021-11-18,03 STAFF COSTS T&S,MARKETS,MR OM LEAK               NOISY LE GRAN,462088,86.87,-
BEIS,Met Office,2021-11-04,07 EQUIPMENT,SERVICES,MS (DISTRIBUTION) UK L   BANBURY,461519,276.12,-
BEIS,Met Office,2021-11-18,13 MISCELLANEOUS,SERVICES,MS (DISTRIBUTION) UK L   BANBURY,461980,357.7,-
BEIS,Met Office,2021-11-04,08 SOFTWARE LICENCES,PEOPLE,MURAL                    SAN FRANCISCO,461651,9.12,-
BEIS,Met Office,2021-11-04,08 SOFTWARE LICENCES,MARKETS,MURAL                    SAN FRANCISCO,461652,44.96,-
BEIS,Met Office,2021-11-15,07 EQUIPMENT,PROGRAMMES,MURAL                    SAN FRANCISCO,461995,60.25,-
BEIS,Met Office,2021-11-15,13 MISCELLANEOUS,PROGRAMMES,MURAL                    SAN FRANCISCO,461996,11.86,-
BEIS,Met Office,2021-11-15,13 MISCELLANEOUS,PROGRAMMES,MURAL                    SAN FRANCISCO,461997,12.07,-
BEIS,Met Office,2021-11-15,13 MISCELLANEOUS,PROGRAMMES,MURAL                    SAN FRANCISCO,461998,11.63,-
BEIS,Met Office,2021-11-15,13 MISCELLANEOUS,PROGRAMMES,MURAL                    SAN FRANCISCO,462000,11.93,-
BEIS,Met Office,2021-11-09,13 MISCELLANEOUS,SERVICES,MUSTO LIMITED,461758,3.36,-
BEIS,Met Office,2021-11-09,13 MISCELLANEOUS,SERVICES,MUSTO LIMITED,461761,-3.36,-
BEIS,Met Office,2021-11-08,13 MISCELLANEOUS,SERVICES,N/A                      01383838313,461595,73.7,-
BEIS,Met Office,2021-11-01,06 ACCOMMODATION,CHIEF FINANCIAL OFFICER,National Oceanography Centre,461492,26643.18,GB 338 5487 64
BEIS,Met Office,2021-11-30,06 ACCOMMODATION,CHIEF FINANCIAL OFFICER,NATS (EN ROUTE) PLC,462398,6906.3,440379456004
BEIS,Met Office,2021-11-24,07 EQUIPMENT,CHIEF FINANCIAL OFFICER,NATWEST COMMERCIAL CARDS DIVISION,462108,5328.47,N/A
BEIS,Met Office,2021-11-24,TRADE CREDITORS,OTHER,NATWEST COMMERCIAL CARDS DIVISION,462269,174825.51,N/A
BEIS,Met Office,2021-11-03,06 ACCOMMODATION,CHIEF FINANCIAL OFFICER,NESS ENGINEERING LTD,461522,389.65,430188472
BEIS,Met Office,2021-11-05,06 ACCOMMODATION,CHIEF FINANCIAL OFFICER,NESS ENGINEERING LTD,461524,1339.06,430188472
BEIS,Met Office,2021-11-05,06 ACCOMMODATION,CHIEF FINANCIAL OFFICER,NESS ENGINEERING LTD,461527,614.49,430188472
BEIS,Met Office,2021-11-04,06 ACCOMMODATION,CHIEF FINANCIAL OFFICER,NESS ENGINEERING LTD,461661,77.31,430188472
BEIS,Met Office,2021-11-04,06 ACCOMMODATION,CHIEF FINANCIAL OFFICER,NESS ENGINEERING LTD,461662,2071.49,430188472
BEIS,Met Office,2021-11-04,06 ACCOMMODATION,CHIEF FINANCIAL OFFICER,NESS ENGINEERING LTD,461664,91.35,430188472
BEIS,Met Office,2021-11-09,11 SERVICES,SERVICES,NETATMO,460512,58760.35,FR43532501848
BEIS,Met Office,2021-11-10,07 EQUIPMENT,SERVICES,NETWORKS CENTRE LTD,23147,624,GB862705026
BEIS,Met Office,2021-11-03,11 SERVICES,SCIENCE,NIWA,461537,155597.5,GST059456466
BEIS,Met Office,2021-11-05,13 MISCELLANEOUS,CHIEF FINANCIAL OFFICER,NORSCOTT VENDING SERVICES LTD,461509,85,751402071
BEIS,Met Office,2021-11-26,06 ACCOMMODATION,CHIEF FINANCIAL OFFICER,Northern Ireland Water,462336,4000,898746537
BEIS,Met Office,2021-11-25,03 STAFF COSTS T&S,OFFICE OF THE CEO,NOVOTEL HOTELS           SAO JOSE DOS,462205,41.76,-
BEIS,Met Office,2021-11-26,11 SERVICES,SERVICES,NSSL GLOBAL LTD,462329,48.09,725151948
BEIS,Met Office,2021-11-26,11 SERVICES,SERVICES,NSSL GLOBAL LTD,462330,48.09,725151948
BEIS,Met Office,2021-11-25,11 SERVICES,SCIENCE,OLD FROG LTD,462311,800,642591532
BEIS,Met Office,2021-11-17,04 CONTRACTORS,CHIEF FINANCIAL OFFICER,OUTSOURCE UK LIMITED,10441,5217.45,576118722
BEIS,Met Office,2021-11-25,Unknown,Unknown,OVARRO TS LTD,462157,0,648280518
BEIS,Met Office,2021-11-02,03 STAFF COSTS T&S,OFFICE OF THE CEO,OYSTER AUTOTOPUP         0343 2221234,461433,20,-
BEIS,Met Office,2021-11-10,03 STAFF COSTS T&S,OFFICE OF THE CEO,OYSTER BUS AUTOSET       0343 2221234,461746,20,-
BEIS,Met Office,2021-11-08,03 STAFF COSTS T&S,SERVICES,OYSTER BUS AUTOTOP       0343 2221234,461742,20,-
BEIS,Met Office,2021-11-08,03 STAFF COSTS T&S,MARKETS,OYSTER RENEW WEB         0343 2221234,461741,10,-
BEIS,Met Office,2021-11-03,03 STAFF COSTS T&S,SCIENCE,OYSTER RENEW WEB         0845 3309876,22945,30,-
BEIS,Met Office,2021-11-01,11 SERVICES,PEOPLE,OYSTER RENEW WEB         0845 3309876,461419,-50,-
BEIS,Met Office,2021-11-04,03 STAFF COSTS T&S,SERVICES,PAYBYPHONE               EXETER,461479,3,-
BEIS,Met Office,2021-11-22,11 SERVICES,SCIENCE,PAYPAL  CENTRODEGES      35314369001,462051,16.75,-
BEIS,Met Office,2021-11-22,11 SERVICES,SCIENCE,PAYPAL  CENTRODEGES      35314369001,462051,16.76,-
BEIS,Met Office,2021-11-24,11 SERVICES,MARKETS,PAYPAL  SCOTTISHREN      35314369001,462112,210,-
BEIS,Met Office,2021-11-02,07 EQUIPMENT,SCIENCE,PAYPAL  SHENZHENSHI      35314369001,461557,28.4,-
BEIS,Met Office,2021-11-19,11 SERVICES,MARKETS,PAYPAL  STEPHENLLOY      35314369001,462084,1250,-
BEIS,Met Office,2021-11-15,11 SERVICES,PEOPLE,PAYPAL  TIFFEN           35314369001,461943,300,-
BEIS,Met Office,2021-11-24,06 ACCOMMODATION,CHIEF FINANCIAL OFFICER,PIPEX LIMITED,462270,3800,582895876
BEIS,Met Office,2021-11-24,06 ACCOMMODATION,CHIEF FINANCIAL OFFICER,PIPEX LIMITED,462271,667.93,582895876
BEIS,Met Office,2021-11-29,06 ACCOMMODATION,CHIEF FINANCIAL OFFICER,PIPEX LIMITED,462297,-4467.93,582895876
BEIS,Met Office,2021-11-24,11 SERVICES,SERVICES,PLIVO.COM                4153760029,23256,379.4,-
BEIS,Met Office,2021-11-09,13 MISCELLANEOUS,CHIEF FINANCIAL OFFICER,POSTURITE (UK) LTD,461038,79.77,583565114
BEIS,Met Office,2021-11-19,13 MISCELLANEOUS,CHIEF FINANCIAL OFFICER,POSTURITE (UK) LTD,462021,802.28,583565114
BEIS,Met Office,2021-11-04,06 ACCOMMODATION,CHIEF FINANCIAL OFFICER,POWER NI ENERGY LTD,461597,81.74,617518142
BEIS,Met Office,2021-11-23,06 ACCOMMODATION,CHIEF FINANCIAL OFFICER,POWER NI ENERGY LTD,462196,336.01,617518142
BEIS,Met Office,2021-11-04,11 SERVICES,SERVICES,POWERNET OY,461603,80.85,FI07617767
BEIS,Met Office,2021-11-05,STOCK,SERVICES,POWERNET OY,461639,442.57,FI07617767
BEIS,Met Office,2021-11-05,STOCK,SERVICES,POWERNET OY,461643,-442.57,FI07617767
BEIS,Met Office,2021-11-15,11 SERVICES,PEOPLE,PRECISE MEDIA MONITORING LTD,461836,1666.67,849092202
BEIS,Met Office,2021-11-10,10 EQUIPMENT MAINTENANCE,SERVICES,PRECISION WATERJET LTD,23236,15,879979318
BEIS,Met Office,2021-11-02,07 EQUIPMENT,SERVICES,PRECISION WATERJET LTD,461559,202.55,879979318
BEIS,Met Office,2021-11-29,07 EQUIPMENT,SCIENCE,PRECISION WATERJET LTD,462357,16.48,879979318
BEIS,Met Office,2021-11-30,07 EQUIPMENT,SCIENCE,PRECISION WATERJET LTD,462364,13.48,879979318
BEIS,Met Office,2021-11-30,07 EQUIPMENT,SCIENCE,PRECISION WATERJET LTD,462365,15.53,879979318
BEIS,Met Office,2021-11-29,07 EQUIPMENT,SCIENCE,PRECISION WATERJET LTD,462367,289.2,879979318
BEIS,Met Office,2021-11-24,07 EQUIPMENT,SERVICES,PREMIER VINYL SOLUTION   TELFORD,462117,44.01,-
BEIS,Met Office,2021-11-08,08 SOFTWARE LICENCES,TECHNOLOGY AND CIO,PRESENTATION CARTOGRAPHY LTD,451710,38000,-
BEIS,Met Office,2021-11-05,08 SOFTWARE LICENCES,MARKETS,PRESENTATION CARTOGRAPHY LTD,461560,1000,-
BEIS,Met Office,2021-11-24,08 SOFTWARE LICENCES,MARKETS,PRESENTATION CARTOGRAPHY LTD,461886,250,-
BEIS,Met Office,2021-11-24,03 STAFF COSTS T&S,MARKETS,PRET A MANGER            ROISSY EN FRA,462274,14.29,-
BEIS,Met Office,2021-11-09,03 STAFF COSTS T&S,MARKETS,PRET A MANGER            WELLINGTON RO,461760,6.7,-
BEIS,Met Office,2021-11-11,11 SERVICES,CHIEF FINANCIAL OFFICER,PRIMETECH (UK) LTD,461747,2220,694212039
BEIS,Met Office,2021-11-23,11 SERVICES,SERVICES,PRIMETECH (UK) LTD,462197,690,694212039
BEIS,Met Office,2021-11-26,Unknown,Unknown,PRINCES GATE COOL WATER LTD,462294,0,771895285
BEIS,Met Office,2021-11-04,13 MISCELLANEOUS,SCIENCE,PRODUCT TECHNOLOGY PARTNERS LTD,461588,2025.33,750667028
BEIS,Met Office,2021-11-03,08 SOFTWARE LICENCES,MARKETS,PRZCHARGE.PREZI.COM      4154948313,461382,453.65,-
BEIS,Met Office,2021-11-22,03 STAFF COSTS T&S,SERVICES,RADISSON BLU HOTEL       ISTANBUL,462185,13.67,-
BEIS,Met Office,2021-11-09,03 STAFF COSTS T&S,CHIEF FINANCIAL OFFICER,RAINBOW CITY TAXIS,460510,237.4,724295039
BEIS,Met Office,2021-11-19,PLANT AND EQUIPMENT,SERVICES,RAYMETRICS S.A. (LUXEMBOURG ACCOUNT),462107,49374.56,EL999641589
BEIS,Met Office,2021-11-09,03 STAFF COSTS T&S,MARKETS,RCAFFE                   CAPE TOWN,461727,14.77,-
BEIS,Met Office,2021-11-09,03 STAFF COSTS T&S,TECHNOLOGY AND CIO,RE Online-ISK            Vesturvor 34,459283,74.29,-
BEIS,Met Office,2021-11-24,04 CONTRACTORS,PROGRAMMES,RECRUITMENT ZONE LTD,462118,2484,703581256
BEIS,Met Office,2021-11-25,04 CONTRACTORS,PROGRAMMES,RECRUITMENT ZONE LTD,462167,2484,703581256
BEIS,Met Office,2021-11-08,11 SERVICES,PROGRAMMES,RED HAT UK LTD,461698,1950,875232905
BEIS,Met Office,2021-11-03,06 ACCOMMODATION,CHIEF FINANCIAL OFFICER,REDACTED PERSONAL DATA,23212,233.75,655585009
BEIS,Met Office,2021-11-03,06 ACCOMMODATION,CHIEF FINANCIAL OFFICER,REDACTED PERSONAL DATA,23213,65.75,655585009
BEIS,Met Office,2021-11-03,06 ACCOMMODATION,CHIEF FINANCIAL OFFICER,REDACTED PERSONAL DATA,23214,59.75,655585009
BEIS,Met Office,2021-11-09,11 SERVICES,MARKETS,REDACTED PERSONAL DATA,460514,1085,-
BEIS,Met Office,2021-11-04,06 ACCOMMODATION,CHIEF FINANCIAL OFFICER,REDACTED PERSONAL DATA,461499,254,001874305
BEIS,Met Office,2021-11-03,06 ACCOMMODATION,CHIEF FINANCIAL OFFICER,REDACTED PERSONAL DATA,461526,104,165182855
BEIS,Met Office,2021-11-04,06 ACCOMMODATION,CHIEF FINANCIAL OFFICER,REDACTED PERSONAL DATA,461531,8,165182855
BEIS,Met Office,2021-11-05,04 CONTRACTORS,SERVICES,REDACTED PERSONAL DATA,461583,249.51,-
BEIS,Met Office,2021-11-04,06 ACCOMMODATION,CHIEF FINANCIAL OFFICER,REDACTED PERSONAL DATA,461590,3200,426523462
BEIS,Met Office,2021-11-08,06 ACCOMMODATION,CHIEF FINANCIAL OFFICER,REDACTED PERSONAL DATA,461592,420,NOT REGD
BEIS,Met Office,2021-11-10,13 MISCELLANEOUS,SERVICES,REDACTED PERSONAL DATA,461700,499,NOTVATREG
BEIS,Met Office,2021-11-11,13 MISCELLANEOUS,PEOPLE,REDACTED PERSONAL DATA,461749,1655.83,NOTVATREGD
BEIS,Met Office,2021-11-15,06 ACCOMMODATION,CHIEF FINANCIAL OFFICER,REDACTED PERSONAL DATA,461882,395,426523462
BEIS,Met Office,2021-11-24,11 SERVICES,SCIENCE,REDACTED PERSONAL DATA,462148,1083.33,VE
BEIS,Met Office,2021-11-25,06 ACCOMMODATION,CHIEF FINANCIAL OFFICER,REDACTED PERSONAL DATA,462168,610,426523462
BEIS,Met Office,2021-11-25,03 STAFF COSTS T&S,SERVICES,RICHBOROUGH SERVIC       SANDWICH,462208,2.16,-
BEIS,Met Office,2021-11-03,13 MISCELLANEOUS,CHIEF FINANCIAL OFFICER,RICS SUBS UK CYBS        COVENTRY,461439,539,-
BEIS,Met Office,2021-11-10,03 STAFF COSTS T&S,SERVICES,ROADCHEF M SERV UPAY L   ROCHESTER,10443,12.46,-
BEIS,Met Office,2021-11-09,13 MISCELLANEOUS,SERVICES,ROBERTS TYRES            SLEAFORD,461798,85,-
BEIS,Met Office,2021-11-22,Unknown,Unknown,ROBERTSON & PETERSON,462194,0,429965500
BEIS,Met Office,2021-11-30,Unknown,Unknown,ROLLO POWER SOLUTIONS,462391,0,100516042
BEIS,Met Office,2021-11-09,03 STAFF COSTS T&S,SERVICES,ROSEMOUNT HOTEL          PITLOCHRY,460655,19.76,-
BEIS,Met Office,2021-11-01,STOCK,SERVICES,ROTRONIC INSTRUMENTS (UK) LTD,461489,-35788.8,523538943
BEIS,Met Office,2021-11-01,TRADE CREDITORS,SERVICES,ROTRONIC INSTRUMENTS (UK) LTD,461490,35788.8,523538943
BEIS,Met Office,2021-11-01,11 SERVICES,SERVICES,ROTRONIC INSTRUMENTS (UK) LTD,461491,15,523538943
BEIS,Met Office,2021-11-17,11 SERVICES,MARKETS,ROWE IT LTD,23110,4500,924964394
BEIS,Met Office,2021-11-04,11 SERVICES,MARKETS,ROWE IT LTD,461466,2181.6,924964394
BEIS,Met Office,2021-11-11,11 SERVICES,MARKETS,ROWE IT LTD,461857,4578.53,924964394
BEIS,Met Office,2021-11-15,11 SERVICES,MARKETS,ROWE IT LTD,461986,2634.36,924964394
BEIS,Met Office,2021-11-22,11 SERVICES,MARKETS,ROWE IT LTD,462133,1481.29,924964394
BEIS,Met Office,2021-11-24,11 SERVICES,MARKETS,ROWE IT LTD,462143,4847.85,924964394
BEIS,Met Office,2021-11-25,11 SERVICES,MARKETS,ROWE IT LTD,462314,942.64,924964394
BEIS,Met Office,2021-11-30,11 SERVICES,MARKETS,ROWE IT LTD,462352,2423.93,924964394
BEIS,Met Office,2021-11-17,13 MISCELLANEOUS,SERVICES,ROYAL METEROLOGICA       0118 956 8500,10441,188,-
BEIS,Met Office,2021-11-10,11 SERVICES,SCIENCE,ROYAL METEROLOGICA       0118 956 8500,461295,40,-
BEIS,Met Office,2021-11-03,11 SERVICES,SCIENCE,ROYAL METEROLOGICA       0118 956 8500,461300,40,-
BEIS,Met Office,2021-11-10,13 MISCELLANEOUS,SERVICES,ROYAL METEROLOGICA       0118 956 8500,461848,103.5,-
BEIS,Met Office,2021-11-11,06 ACCOMMODATION,CHIEF FINANCIAL OFFICER,Rsk Adas Ltd,461897,-840,256435886
BEIS,Met Office,2021-11-04,11 SERVICES,CHIEF FINANCIAL OFFICER,RSM,461638,4618.09,890965570
BEIS,Met Office,2021-11-03,06 ACCOMMODATION,CHIEF FINANCIAL OFFICER,SAFESTORE LTD,10403,198.5,722887607
BEIS,Met Office,2021-11-03,06 ACCOMMODATION,CHIEF FINANCIAL OFFICER,SAFESTORE LTD,23090,198.5,722887607
BEIS,Met Office,2021-11-24,06 ACCOMMODATION,CHIEF FINANCIAL OFFICER,SAFESTORE LTD,462120,-128.44,722887607
BEIS,Met Office,2021-11-25,06 ACCOMMODATION,CHIEF FINANCIAL OFFICER,SAFESTORE LTD,462135,128.44,722887607
BEIS,Met Office,2021-11-10,03 STAFF COSTS T&S,SERVICES,SAINSBURYS SACAT 0510    SWANSEA,461840,3.52,-
BEIS,Met Office,2021-11-22,10 EQUIPMENT MAINTENANCE,SERVICES,SARTORIUS MECHATRO       EPSOM,462051,636.78,-
BEIS,Met Office,2021-11-03,11 SERVICES,MARKETS,SCIENCE & TECHNOLOGY FACILITIES COUNCIL,461460,16882.91,287461957
BEIS,Met Office,2021-11-04,06 ACCOMMODATION,CHIEF FINANCIAL OFFICER,Scottish Government,461539,31385.86,888842551
BEIS,Met Office,2021-11-16,07 EQUIPMENT,SERVICES,SCREWFIX                 EXETER SOWTON,462032,81.69,-
BEIS,Met Office,2021-11-17,07 EQUIPMENT,SERVICES,SCREWFIX DIRECT          YEOVIL,461949,32.49,-
BEIS,Met Office,2021-11-17,07 EQUIPMENT,SERVICES,SCREWFIX DIRECT          YEOVIL,461950,40.81,-
BEIS,Met Office,2021-11-15,07 EQUIPMENT,SERVICES,SCREWFIX DIRECT          YEOVIL,461951,26.66,-
BEIS,Met Office,2021-11-10,03 STAFF COSTS T&S,SERVICES,SHELL ROOLEY LANE        BRADFORD,23108,7.22,-
BEIS,Met Office,2021-11-09,06 ACCOMMODATION,CHIEF FINANCIAL OFFICER,SHETLAND GRASSCUTTING,460515,2961.96,978367258
BEIS,Met Office,2021-11-10,08 SOFTWARE LICENCES,TECHNOLOGY AND CIO,SIGNAVIO GMBH,461776,188879.04,DE265675123
BEIS,Met Office,2021-11-15,13 MISCELLANEOUS,SERVICES,SIOP Y CARDI LTD         CARDIGAN,461987,5,-
BEIS,Met Office,2021-11-04,08 SOFTWARE LICENCES,TECHNOLOGY AND CIO,SOFTCAT LTD,461514,48375,491848503
BEIS,Met Office,2021-11-05,11 SERVICES,MARKETS,Solomon Islands Meteorological Service,461510,3854.3,-
BEIS,Met Office,2021-11-19,04 CONTRACTORS,PROGRAMMES,SOLOS CONSULTANTS LTD,10449,23400,812035476
BEIS,Met Office,2021-11-10,04 CONTRACTORS,TECHNOLOGY AND CIO,SOLOS CONSULTANTS LTD,23234,15675,812035476
BEIS,Met Office,2021-11-10,04 CONTRACTORS,TECHNOLOGY AND CIO,SOLOS CONSULTANTS LTD,23235,8025.6,812035476
BEIS,Met Office,2021-11-10,04 CONTRACTORS,MARKETS,SOLOS CONSULTANTS LTD,23239,8540,812035476
BEIS,Met Office,2021-11-24,04 CONTRACTORS,TECHNOLOGY AND CIO,SOLOS CONSULTANTS LTD,23243,10400,812035476
BEIS,Met Office,2021-11-10,07 EQUIPMENT,SERVICES,SOLWISE                  HESSLE HULL,461811,206.52,-
BEIS,Met Office,2021-11-16,07 EQUIPMENT,TECHNOLOGY AND CIO,SONARSOURCE              LE GRAND-SACO,462028,133.32,-
BEIS,Met Office,2021-11-04,06 ACCOMMODATION,CHIEF FINANCIAL OFFICER,South West Water Ltd,461599,1511.48,236873674
BEIS,Met Office,2021-11-10,06 ACCOMMODATION,CHIEF FINANCIAL OFFICER,South West Water Ltd,461855,3486.34,236873674
BEIS,Met Office,2021-11-05,03 STAFF COSTS T&S,SERVICES,SOUTHERN CO-OP 0170      HIGH ST SHREW,461688,6.85,-
BEIS,Met Office,2021-11-10,11 SERVICES,MARKETS,SOUTHSOUTHNORTH,23010,57866.86,4790219721
BEIS,Met Office,2021-11-17,03 STAFF COSTS T&S,SERVICES,"SOUTHWAITE S/W BK        NR CARISLE, C",462026,7.19,-
BEIS,Met Office,2021-11-17,06 ACCOMMODATION,CHIEF FINANCIAL OFFICER,SOVEREIGN RESTORATIONS (CONTRACTS) LTD,462003,11898.25,683369985
BEIS,Met Office,2021-11-24,Unknown,Unknown,SPARKS MECHANICAL SERVICES LTD,462152,0,456445530
BEIS,Met Office,2021-11-29,Unknown,Unknown,SPARKS MECHANICAL SERVICES LTD,462374,0,456445530
BEIS,Met Office,2021-11-09,11 SERVICES,SERVICES,SPIRIT VENTURES LTD      PERSHORE,461751,87.77,-
BEIS,Met Office,2021-11-17,11 SERVICES,PEOPLE,SPIRIT VENTURES LTD      PERSHORE,461952,295,-
BEIS,Met Office,2021-11-01,11 SERVICES,MARKETS,SPOKE (INTERACTIVE) LTD,461487,350,840156451
BEIS,Met Office,2021-11-11,11 SERVICES,MARKETS,SPOKE (INTERACTIVE) LTD,461785,250,840156451
BEIS,Met Office,2021-11-17,11 SERVICES,MARKETS,SPOKE (INTERACTIVE) LTD,461947,250,840156451
BEIS,Met Office,2021-11-22,03 STAFF COSTS T&S,SERVICES,SPORTS BAR               GLASGOW,462184,16.92,-
BEIS,Met Office,2021-11-12,13 MISCELLANEOUS,SCIENCE,SPRINGER NATURE LIMITED,461788,2680,199440621
BEIS,Met Office,2021-11-03,11 SERVICES,PROGRAMMES,SSE CONTRACTING LTD,10424,10333.58,382894546
BEIS,Met Office,2021-11-10,07 EQUIPMENT,TECHNOLOGY AND CIO,SSE CONTRACTING LTD,23237,2548.23,382894546
BEIS,Met Office,2021-11-10,11 SERVICES,TECHNOLOGY AND CIO,SSE CONTRACTING LTD,23238,929.44,382894546
BEIS,Met Office,2021-11-05,06 ACCOMMODATION,CHIEF FINANCIAL OFFICER,Sse Generation Ltd,460352,0,553769603
BEIS,Met Office,2021-11-10,06 ACCOMMODATION,CHIEF FINANCIAL OFFICER,ST MODWEN VENTURES LTD,459580,89.71,975081008
BEIS,Met Office,2021-11-23,Unknown,Unknown,ST MODWEN VENTURES LTD,462222,0,975081008
BEIS,Met Office,2021-11-08,01 STAFF COSTS PAY,PEOPLE,STARZ                    EXETER,461740,450,-
BEIS,Met Office,2021-11-18,03 STAFF COSTS T&S,SERVICES,STEAM-PACKET.COM         01624 661661,462089,172,-
BEIS,Met Office,2021-11-25,06 ACCOMMODATION,CHIEF FINANCIAL OFFICER,STRATUS INTEGRATED SERVICES LTD,461022,110939.4,781669484
BEIS,Met Office,2021-11-11,04 CONTRACTORS,OTHER,STRATUS INTEGRATED SERVICES LTD,461808,78525,781669484
BEIS,Met Office,2021-11-15,LAND AND BUILDINGS,OTHER,STRATUS INTEGRATED SERVICES LTD,461828,237876.5,781669484
BEIS,Met Office,2021-11-15,04 CONTRACTORS,OFFICE OF THE CS & TECH,STRATUS INTEGRATED SERVICES LTD,461828,17710,781669484
BEIS,Met Office,2021-11-17,LAND AND BUILDINGS,OTHER,STRATUS INTEGRATED SERVICES LTD,461969,4384624.68,781669484
BEIS,Met Office,2021-11-24,06 ACCOMMODATION,CHIEF FINANCIAL OFFICER,STRATUS INTEGRATED SERVICES LTD,462007,460191.4,781669484
BEIS,Met Office,2021-11-29,Unknown,Unknown,STS DEFENCE LTD,462363,0,844297794
BEIS,Met Office,2021-11-02,03 STAFF COSTS T&S,MARKETS,STURM GMBH               DARMSTADT,461443,39.34,-
BEIS,Met Office,2021-11-10,11 SERVICES,CHIEF FINANCIAL OFFICER,SURE (GUERNSEY) LTD,461706,2736.6,NOTVAT
BEIS,Met Office,2021-11-03,11 SERVICES,CHIEF FINANCIAL OFFICER,SURE SOUTH ATLANTIC LTD,10432,1276.59,NOVATREG
BEIS,Met Office,2021-11-03,11 SERVICES,CHIEF FINANCIAL OFFICER,SURE SOUTH ATLANTIC LTD,23115,3503.02,NOVATREG
BEIS,Met Office,2021-11-18,13 MISCELLANEOUS,SCIENCE,SURVEYMONKEY.COM         DUBLIN,461948,21.67,-
BEIS,Met Office,2021-11-10,11 SERVICES,PEOPLE,SWANTECH LOGISTICS LTD,461807,2520,769332401
BEIS,Met Office,2021-11-04,03 STAFF COSTS T&S,SERVICES,TABLE TABLE41013735      HOLES BAY,461655,32.57,-
BEIS,Met Office,2021-11-19,11 SERVICES,MARKETS,Tanzania Meteorological Agency,462106,72249.4,-
BEIS,Met Office,2021-11-22,11 SERVICES,MARKETS,Tanzania Meteorological Agency,462165,32344.63,-
BEIS,Met Office,2021-11-22,03 STAFF COSTS T&S,MARKETS,TAXI SVC LONG ISALND C   ASTORIA,462066,57.18,-
BEIS,Met Office,2021-11-09,03 STAFF COSTS T&S,TECHNOLOGY AND CIO,T-CLAN S  R  O           BRATISLAVA,459276,149.13,-
BEIS,Met Office,2021-11-03,11 SERVICES,CHIEF FINANCIAL OFFICER,TELEFONICA O2 UK LIMITED,461614,0,778603785
BEIS,Met Office,2021-11-22,11 SERVICES,CHIEF FINANCIAL OFFICER,TELEFONICA O2 UK LIMITED,462016,50,778603785
BEIS,Met Office,2021-11-03,06 ACCOMMODATION,CHIEF FINANCIAL OFFICER,TENNIE FACILITIES PROPERTY MANAGEMENT LTD,23218,179.53,982055803
BEIS,Met Office,2021-11-15,13 MISCELLANEOUS,SERVICES,TESCO STORE 2236         CAMBORNE,461827,5.42,-
BEIS,Met Office,2021-11-25,03 STAFF COSTS T&S,SERVICES,TESCO STORE 2444         EBBW VALE 2,453751,6.2,-
BEIS,Met Office,2021-11-01,13 MISCELLANEOUS,SERVICES,TESCO STORES 2236        CAMBORNE,461423,2,-
BEIS,Met Office,2021-11-09,13 MISCELLANEOUS,SERVICES,TESCO STORES 2947        IVYBRIDGE,459277,8.33,-
BEIS,Met Office,2021-11-01,13 MISCELLANEOUS,SERVICES,TESCO STORES 5170        REDRUTH,461420,2,-
BEIS,Met Office,2021-11-22,13 MISCELLANEOUS,SCIENCE,TESCO STORES 6591        BEDFORD,462186,2,-
BEIS,Met Office,2021-11-22,11 SERVICES,SERVICES,THE APP BUSINESS LIMITED (TAB),462164,61600,238263364
BEIS,Met Office,2021-11-15,11 SERVICES,MARKETS,THE EMERGENCY PLAN       0845 6009587,461391,399,-
BEIS,Met Office,2021-11-10,03 STAFF COSTS T&S,SERVICES,THE GLOBE HOTEL          TOPSHAM,461784,13.6,-
BEIS,Met Office,2021-11-22,01 STAFF COSTS PAY,SERVICES,THE GLOBE HOTEL          TOPSHAM,462189,50,-
BEIS,Met Office,2021-11-02,13 MISCELLANEOUS,PROGRAMMES,THE IET                  +44 (0)1438 7,461434,205,-
BEIS,Met Office,2021-11-03,03 STAFF COSTS T&S,SERVICES,THE MET OFFICE           EXETER,10393,5.08,-
BEIS,Met Office,2021-11-22,03 STAFF COSTS T&S,SERVICES,THE MOUNT CHARLES GROU   EXETER,462187,6.75,-
BEIS,Met Office,2021-11-03,01 STAFF COSTS PAY,SERVICES,THE PLOUGH INN           ORMSKIRK,461471,45.75,-
BEIS,Met Office,2021-11-25,Unknown,Unknown,Tilhill Forestry Ltd,462305,0,502157292
BEIS,Met Office,2021-11-15,TRADE CREDITORS,SERVICES,TOTECTORS LIMITED,461792,28.85,-
BEIS,Met Office,2021-11-10,07 EQUIPMENT,PEOPLE,TOWERS WATSON LTD,461823,477,862462222
BEIS,Met Office,2021-11-03,07 EQUIPMENT,SCIENCE,TRACKS LASER & ELECTRO   BRACKNELL,461517,458.5,-
BEIS,Met Office,2021-11-08,03 STAFF COSTS T&S,MARKETS,TRIBECA ORIGINAL         BROOKLYN,461709,28.69,-
BEIS,Met Office,2021-11-01,11 SERVICES,PEOPLE,"TRINT                    LONDON, UNITE",461419,60,-
BEIS,Met Office,2021-11-01,11 SERVICES,PEOPLE,"TRINT                    LONDON, UNITE",461419,120,-
BEIS,Met Office,2021-11-02,06 ACCOMMODATION,CHIEF FINANCIAL OFFICER,TULLY FARM HOLDINGS T/A CONTRACT SERVICES,461552,342.5,872632707
BEIS,Met Office,2021-11-10,06 ACCOMMODATION,CHIEF FINANCIAL OFFICER,TULLY FARM HOLDINGS T/A CONTRACT SERVICES,461702,100.39,872632707
BEIS,Met Office,2021-11-24,06 ACCOMMODATION,CHIEF FINANCIAL OFFICER,TULLY FARM HOLDINGS T/A CONTRACT SERVICES,462146,1987.5,872632707
BEIS,Met Office,2021-11-05,03 STAFF COSTS T&S,MARKETS,UBER BV                  866-576-1039,461681,6.2,-
BEIS,Met Office,2021-11-05,03 STAFF COSTS T&S,MARKETS,UBER BV                  866-576-1039,461682,22.26,-
BEIS,Met Office,2021-11-10,03 STAFF COSTS T&S,MARKETS,UBER ZA NOV21 XWXGD HELP.help.uber.com,461710,8.34,-
BEIS,Met Office,2021-11-08,03 STAFF COSTS T&S,MARKETS,UBER ZA NOV24 4LS2C HELP.help.uber.com,461724,2.81,-
BEIS,Met Office,2021-11-08,03 STAFF COSTS T&S,MARKETS,UBER ZA NOV24 XHZDQ HELP.help.uber.com,461725,9.91,-
BEIS,Met Office,2021-11-09,03 STAFF COSTS T&S,MARKETS,UBER ZA NOV25 FEYFD HELP.help.uber.com,461726,3.37,-
BEIS,Met Office,2021-11-03,11 SERVICES,SERVICES,UK TELEMATICS LIMITED,10431,2348.64,GB763051643
BEIS,Met Office,2021-11-25,11 SERVICES,SCIENCE,UKBA5552478237           CROYDON,461435,21,-
BEIS,Met Office,2021-11-04,13 MISCELLANEOUS,MARKETS,UKBA6502594139           CROYDON,461541,21,-
BEIS,Met Office,2021-11-25,11 SERVICES,SCIENCE,UKRI,462167,16684.33,GB287461957
BEIS,Met Office,2021-11-17,Unknown,Unknown,ULTRA ELECTRONICS AEP,462053,0,169591543
BEIS,Met Office,2021-11-24,11 SERVICES,MARKETS,ULTRA ELECTRONICS LTD NUCLEAR CONTROL SYSTEMS,10414,2860.9,123340754
BEIS,Met Office,2021-11-10,11 SERVICES,MARKETS,ULTRA ELECTRONICS LTD NUCLEAR CONTROL SYSTEMS,10428,232304.64,123340754
BEIS,Met Office,2021-11-17,Unknown,Unknown,University Of Exeter,462071,0,142047795
BEIS,Met Office,2021-11-24,Unknown,Unknown,University Of Exeter,462277,0,142047795
BEIS,Met Office,2021-11-30,11 SERVICES,PROGRAMMES,University Of Exeter,462397,1424,142047795
BEIS,Met Office,2021-11-10,11 SERVICES,PROGRAMMES,University Of Reading,23102,46644.34,200012659
BEIS,Met Office,2021-11-08,11 SERVICES,MARKETS,University Of Reading,461468,25454.39,200012659
BEIS,Met Office,2021-11-18,11 SERVICES,PROGRAMMES,University Of Reading,461946,205232,200012659
BEIS,Met Office,2021-11-15,13 MISCELLANEOUS,SCIENCE,University Of Reading,462002,2550,200012659
BEIS,Met Office,2021-11-11,03 STAFF COSTS T&S,MARKETS,UPAY LTD                 ROCHESTER,461755,5.63,-
BEIS,Met Office,2021-11-11,08 SOFTWARE LICENCES,TECHNOLOGY AND CIO,URBAN AIRSHIP INC.,461749,2761.6,-
BEIS,Met Office,2021-11-10,11 SERVICES,MARKETS,VAISALA LTD,23102,4378.6,336100011
BEIS,Met Office,2021-11-05,TRADE CREDITORS,SERVICES,Vaisala Oyj,461560,2546.31,FI01244162
BEIS,Met Office,2021-11-08,STOCK,SERVICES,Vaisala Oyj,461563,2546.31,FI01244162
BEIS,Met Office,2021-11-15,PLANT AND EQUIPMENT,PROGRAMMES,Vaisala Oyj,461828,5728.78,FI01244162
BEIS,Met Office,2021-11-17,Unknown,Unknown,Vaisala Oyj,462075,0,FI01244162
BEIS,Met Office,2021-11-05,06 ACCOMMODATION,CHIEF FINANCIAL OFFICER,Valuation Office Agency,461560,1225,888848141
BEIS,Met Office,2021-11-05,06 ACCOMMODATION,CHIEF FINANCIAL OFFICER,Valuation Office Agency,461560,6737.5,888848141
BEIS,Met Office,2021-11-04,06 ACCOMMODATION,CHIEF FINANCIAL OFFICER,Valuation Office Agency,461587,4287.5,888848141
BEIS,Met Office,2021-11-10,06 ACCOMMODATION,CHIEF FINANCIAL OFFICER,VICKERY HOLMAN,461789,-2898.92,943875678
BEIS,Met Office,2021-11-15,06 ACCOMMODATION,CHIEF FINANCIAL OFFICER,VICKERY HOLMAN,461791,2835.62,943875678
BEIS,Met Office,2021-11-08,03 STAFF COSTS T&S,MARKETS,VINEYARD HOTEL           NEWLANDS CT,461721,7.45,-
BEIS,Met Office,2021-11-17,11 SERVICES,MARKETS,VODAFONE                 LONDON  W2 60,462069,12.67,-
BEIS,Met Office,2021-11-23,10 EQUIPMENT MAINTENANCE,SERVICES,VODEX LTD                44238081538,462005,325,-
BEIS,Met Office,2021-11-24,03 STAFF COSTS T&S,SERVICES,W M MORRISONS            ABERYSTWYTH,461826,5.2,-
BEIS,Met Office,2021-11-19,04 CONTRACTORS,CHIEF FINANCIAL OFFICER,WA CONSULTANTS LTD,10406,11046,876328977
BEIS,Met Office,2021-11-03,04 CONTRACTORS,MARKETS,WA CONSULTANTS LTD,461465,2427.9,876328977
BEIS,Met Office,2021-11-03,04 CONTRACTORS,TECHNOLOGY AND CIO,WA CONSULTANTS LTD,461622,2456,876328977
BEIS,Met Office,2021-11-03,04 CONTRACTORS,TECHNOLOGY AND CIO,WA CONSULTANTS LTD,461625,10464,876328977
BEIS,Met Office,2021-11-03,04 CONTRACTORS,OFFICE OF THE CS & TECH,WA CONSULTANTS LTD,461626,2180,876328977
BEIS,Met Office,2021-11-03,04 CONTRACTORS,TECHNOLOGY AND CIO,WA CONSULTANTS LTD,461627,7920,876328977
BEIS,Met Office,2021-11-10,04 CONTRACTORS,OFFICE OF THE CS & TECH,WA CONSULTANTS LTD,461697,8284,876328977
BEIS,Met Office,2021-11-11,04 CONTRACTORS,TECHNOLOGY AND CIO,WA CONSULTANTS LTD,461833,8300,876328977
BEIS,Met Office,2021-11-10,04 CONTRACTORS,PROGRAMMES,WA CONSULTANTS LTD,461837,9900,876328977
BEIS,Met Office,2021-11-10,04 CONTRACTORS,TECHNOLOGY AND CIO,WA CONSULTANTS LTD,461838,5750,876328977
BEIS,Met Office,2021-11-15,06 ACCOMMODATION,CHIEF FINANCIAL OFFICER,WALMSLEY RESIDENTIAL LETTINGS LIMITED,10444,63710.58,200012659
BEIS,Met Office,2021-11-12,11 SERVICES,MARKETS,WALNUT UNLIMITED LIMITED,461787,2710,648857968
BEIS,Met Office,2021-11-04,11 SERVICES,MARKETS,WARWICK.AC.UK/PAYMENTS   2476524568,461653,-650,-
BEIS,Met Office,2021-11-10,03 STAFF COSTS T&S,MARKETS,WELCOME BREAK STARBUCK   GORDANO,461771,1.75,-
BEIS,Met Office,2021-11-23,03 STAFF COSTS T&S,MARKETS,WELCOME BREAK WAITROSE   GORDANO,462041,7.62,-
BEIS,Met Office,2021-11-10,07 EQUIPMENT,TECHNOLOGY AND CIO,WESTERMO DATA COMMUNICATIONS LTD,461851,620.5,656570708
BEIS,Met Office,2021-11-01,03 STAFF COSTS T&S,PROGRAMMES,WETHERBY EDC             WEST YORKSHIR,461475,2.6,-
BEIS,Met Office,2021-11-03,13 MISCELLANEOUS,CHIEF FINANCIAL OFFICER,Willis Ltd,10396,108.5,334128970
BEIS,Met Office,2021-11-15,13 MISCELLANEOUS,CHIEF FINANCIAL OFFICER,Willis Ltd,461994,268.71,334128970
BEIS,Met Office,2021-11-15,LAND AND BUILDINGS,PROGRAMMES,Willmott Dixon Holdings Limited,461883,187494.04,197737796
BEIS,Met Office,2021-11-25,Unknown,Unknown,WINDSPEED LIMITED,462307,0,800755256
BEIS,Met Office,2021-11-11,06 ACCOMMODATION,CHIEF FINANCIAL OFFICER,WINGFIELD DIGBY SETTLED ESTATE,461755,2462.5,723281453
BEIS,Met Office,2021-11-09,11 SERVICES,CHIEF FINANCIAL OFFICER,WIREFAST LTD,461803,13133.09,749536001
BEIS,Met Office,2021-11-09,11 SERVICES,CHIEF FINANCIAL OFFICER,WIREFAST LTD,461804,183.33,749536001
BEIS,Met Office,2021-11-09,11 SERVICES,CHIEF FINANCIAL OFFICER,WIREFAST LTD,461805,182.79,749536001
BEIS,Met Office,2021-11-11,11 SERVICES,CHIEF FINANCIAL OFFICER,WIREFAST LTD,461904,163.35,749536001
BEIS,Met Office,2021-11-11,11 SERVICES,CHIEF FINANCIAL OFFICER,WIREFAST LTD,461906,172.8,749536001
BEIS,Met Office,2021-11-23,Unknown,Unknown,WIREFAST LTD,462227,0,749536001
BEIS,Met Office,2021-11-25,Unknown,Unknown,WIREFAST LTD,462259,0,749536001
BEIS,Met Office,2021-11-24,03 STAFF COSTS T&S,SERVICES,WM MORRISONS             BODMIN,462275,4.02,-
BEIS,Met Office,2021-11-05,03 STAFF COSTS T&S,SERVICES,WM MORRISONS STORE       LISKEARD,461689,7.2,-
BEIS,Met Office,2021-11-03,PLANT AND EQUIPMENT,SERVICES,WORDENTEC LTD,461511,5281,790895963
BEIS,Met Office,2021-11-02,10 EQUIPMENT MAINTENANCE,SERVICES,WORDENTEC LTD,461553,2.84,790895963
BEIS,Met Office,2021-11-10,11 SERVICES,MARKETS,WORLDPAY (UK) LTD,23219,30.85,991280207
BEIS,Met Office,2021-11-03,11 SERVICES,MARKETS,WORLDPAY (UK) LTD,23220,32.05,991280207
BEIS,Met Office,2021-11-10,11 SERVICES,MARKETS,WORLDPAY (UK) LTD,23221,31.53,991280207
BEIS,Met Office,2021-11-04,11 SERVICES,SERVICES,WORLDPAY (UK) LTD,461582,560.76,991280207
BEIS,Met Office,2021-11-10,13 MISCELLANEOUS,SCIENCE,WP-INSTITUTE OF PH       LONDON,23101,134,-
BEIS,Met Office,2021-11-01,07 EQUIPMENT,SERVICES,WWW.BIRDSPIKESONLI       01626 835055,461488,18.65,-
BEIS,Met Office,2021-11-15,13 MISCELLANEOUS,SERVICES,WWW.BRUNELENGRAVING.CO   INTERNET,461936,65.95,-
BEIS,Met Office,2021-11-10,13 MISCELLANEOUS,SERVICES,WWW.CILIP.ORG.UK         LONDON  WC1E,461841,208,-
BEIS,Met Office,2021-11-09,07 EQUIPMENT,SERVICES,WWW.CLUBTEK.CO.UK        INTERNET,461797,31.25,-
BEIS,Met Office,2021-11-23,11 SERVICES,SERVICES,WWW.DVLA.GOV.UK          VEHICLE LICEN,462039,212.5,-
BEIS,Met Office,2021-11-01,13 MISCELLANEOUS,SERVICES,WWW.EDENSPRINGS.CO.UK    INTERNET,461494,49.9,-
BEIS,Met Office,2021-11-09,11 SERVICES,CHIEF FINANCIAL OFFICER,WWW.IDCARDSDIRECT.COM    INTERNET,461748,40.99,-
BEIS,Met Office,2021-11-12,FIXTURE & FITTINGS,CHIEF FINANCIAL OFFICER,WWW.IGUS.CO.UK           01604 677240,461927,498.2,-
BEIS,Met Office,2021-11-24,11 SERVICES,SERVICES,WWW.ITSMF.CO.UK          INTERNET,462149,199,-
BEIS,Met Office,2021-11-24,07 EQUIPMENT,SCIENCE,WWW.MELBOUNE.CO.UK       INTERNET,461287,249,-
BEIS,Met Office,2021-11-25,07 EQUIPMENT,SCIENCE,WWW.MELBOURNE.CO.UK      INTERNET,461435,186,-
BEIS,Met Office,2021-11-03,13 MISCELLANEOUS,MARKETS,WWW.OFFICEFURNITUREONL   8444999222,10403,94,-
BEIS,Met Office,2021-11-11,FIXTURE & FITTINGS,CHIEF FINANCIAL OFFICER,WWW.ORIONUKUK.BIZ        LEEDS,461898,270,-
BEIS,Met Office,2021-11-18,13 MISCELLANEOUS,SERVICES,WWW.PRINTERBASE.CO.UK    ASTON-UNDER-L,461953,296.56,-
BEIS,Met Office,2021-11-03,08 SOFTWARE LICENCES,SERVICES,WWW.SOLIDSOLUTIONS.CO.   KENILWORTH,461353,1795,-
BEIS,Met Office,2021-11-18,07 EQUIPMENT,SERVICES,WWW.SWRSPARES.COM        01442 219611,461958,44,-
BEIS,Met Office,2021-11-01,13 MISCELLANEOUS,OFFICE OF THE CEO,WWW.THOMASTELFORD.CO.U   01892832299,461419,44,-
BEIS,Met Office,2021-11-15,07 EQUIPMENT,SERVICES,WWW.TOOLSTATION.COM      CC STAT,461989,8.96,-
BEIS,Met Office,2021-11-15,13 MISCELLANEOUS,SERVICES,WWW.TOOLSTATION.COM      CC STAT,461990,22.43,-
BEIS,Met Office,2021-11-09,13 MISCELLANEOUS,SERVICES,WWW.UK.INSIGHT.COM       0844 6925329,457294,142.14,-
BEIS,Met Office,2021-11-10,13 MISCELLANEOUS,SERVICES,WWW.UK.INSIGHT.COM       0844 6925329,461780,45.9,-
BEIS,Met Office,2021-11-15,13 MISCELLANEOUS,SERVICES,WWW.UK.INSIGHT.COM       0844 6925329,461913,199.33,-
BEIS,Met Office,2021-11-12,13 MISCELLANEOUS,SERVICES,WWW.UK.INSIGHT.COM       0844 6925329,461922,24.02,-
BEIS,Met Office,2021-11-12,13 MISCELLANEOUS,SERVICES,WWW.UK.INSIGHT.COM       0844 6925329,461923,146.08,-
BEIS,Met Office,2021-11-12,13 MISCELLANEOUS,SERVICES,WWW.UK.INSIGHT.COM       0844 6925329,461924,682.3,-
BEIS,Met Office,2021-11-12,13 MISCELLANEOUS,SERVICES,WWW.UK.INSIGHT.COM       0844 6925329,461925,70.73,-
BEIS,Met Office,2021-11-24,13 MISCELLANEOUS,OFFICE OF THE CEO,WWW.WILMINGTON.CO.       0207 5668291,462206,144,-
BEIS,Met Office,2021-11-11,13 MISCELLANEOUS,CHIEF FINANCIAL OFFICER,XPEDITE SYSTEMS (UK) LTD,461909,100,599016994
BEIS,Met Office,2021-11-03,11 SERVICES,CHIEF FINANCIAL OFFICER,XUPER,23215,720,316677090
BEIS,Met Office,2021-11-03,11 SERVICES,CHIEF FINANCIAL OFFICER,XUPER,23216,720,316677090
BEIS,Met Office,2021-11-10,11 SERVICES,CHIEF FINANCIAL OFFICER,XUPER,23217,450,316677090
BEIS,Met Office,2021-11-25,07 EQUIPMENT,TECHNOLOGY AND CIO,YOUR ORDER  170083 WO1   INTERNET,462219,1476.4,-
BEIS,Met Office,2021-11-05,11 SERVICES,PEOPLE,ZENO COMMUNICATIONS (UK) LTD,461560,2500,139105722
BEIS,Met Office,2021-11-08,07 EQUIPMENT,SERVICES,ZORO UK                  LONDON,461707,63.77,-
